Body Name,Body,Service division categorisation,Expense Type,Date paid,Transaction Reference,Net,Supplier Name,Redacted/Excluded
South Holland District Council,http://statistics.data.gov.uk/id/local-authority/32UF,Capital,Works to Buildings (main Contractor),02/07/2014,IJ00030742,73185.07,Kensa Contracting Ltd, 
South Holland District Council,http://statistics.data.gov.uk/id/local-authority/32UF,Environmental Services,Agency Staff,03/07/2014,IJ00030689,198.00,247 Personnel Ltd, 
South Holland District Council,http://statistics.data.gov.uk/id/local-authority/32UF,Environmental Services,Agency Staff,03/07/2014,IJ00030689,661.50,247 Personnel Ltd, 
South Holland District Council,http://statistics.data.gov.uk/id/local-authority/32UF,Environmental Services,Agency Staff,03/07/2014,IJ00030689,139.50,247 Personnel Ltd, 
South Holland District Council,http://statistics.data.gov.uk/id/local-authority/32UF,Environmental Services,Agency Staff,03/07/2014,IJ00030690,408.84,247 Personnel Ltd, 
South Holland District Council,http://statistics.data.gov.uk/id/local-authority/32UF,Environmental Services,Agency Staff,03/07/2014,IJ00030690,171.28,247 Personnel Ltd, 
South Holland District Council,http://statistics.data.gov.uk/id/local-authority/32UF,Environmental Services,Agency Staff,03/07/2014,IJ00030690,337.03,247 Personnel Ltd, 
South Holland District Council,http://statistics.data.gov.uk/id/local-authority/32UF,Community Development,Premises and Room Hire,03/07/2014,IJ00030770,-394.17,Act II, 
South Holland District Council,http://statistics.data.gov.uk/id/local-authority/32UF,Community Development,Other Hire Fees,03/07/2014,IJ00030770,-393.33,Act II, 
South Holland District Council,http://statistics.data.gov.uk/id/local-authority/32UF,Community Development,Payments to Bodies in Respect of Income Collected,03/07/2014,IJ00030770,2740.00,Act II, 
South Holland District Council,http://statistics.data.gov.uk/id/local-authority/32UF,Community Development,Commission,03/07/2014,IJ00030770,-296.83,Act II, 
South Holland District Council,http://statistics.data.gov.uk/id/local-authority/32UF,Housing Landlord Manager,Water and Sewerage Charges,03/07/2014,IJ00030647,556.36,Anglian Water, 
South Holland District Council,http://statistics.data.gov.uk/id/local-authority/32UF,Environmental Services,Agency Staff,03/07/2014,IJ00030688,451.68,Blue Arrow Ltd, 
South Holland District Council,http://statistics.data.gov.uk/id/local-authority/32UF,Environmental Services,Agency Staff,03/07/2014,IJ00030688,761.25,Blue Arrow Ltd, 
South Holland District Council,http://statistics.data.gov.uk/id/local-authority/32UF,Environmental Services,Agency Staff,03/07/2014,IJ00030688,280.07,Blue Arrow Ltd, 
South Holland District Council,http://statistics.data.gov.uk/id/local-authority/32UF,Environmental Services,Agency Staff,03/07/2014,IJ00030688,1789.46,Blue Arrow Ltd, 
South Holland District Council,http://statistics.data.gov.uk/id/local-authority/32UF,Environmental Services,Agency Staff,03/07/2014,IJ00030688,152.25,Blue Arrow Ltd, 
South Holland District Council,http://statistics.data.gov.uk/id/local-authority/32UF,Housing,Other Miscellaneous Expenses,03/07/2014,IJ00030758,7778.64,Broadgate Homes Limited, 
South Holland District Council,http://statistics.data.gov.uk/id/local-authority/32UF,Housing,Other Miscellaneous Expenses,03/07/2014,IJ00030762,6583.22,Broadgate Homes Limited, 
South Holland District Council,http://statistics.data.gov.uk/id/local-authority/32UF,Housing,Other Miscellaneous Expenses,03/07/2014,IJ00030757,11811.96,Broadgate Homes Limited, 
South Holland District Council,http://statistics.data.gov.uk/id/local-authority/32UF,Building Control,Buildings Maintenance - Programmed,03/07/2014,IJ00030743,910.00,Brooks (Spalding) Ltd, 
South Holland District Council,http://statistics.data.gov.uk/id/local-authority/32UF,Building Control,Buildings Maintenance - Programmed,03/07/2014,IJ00030745,910.00,Brooks (Spalding) Ltd, 
South Holland District Council,http://statistics.data.gov.uk/id/local-authority/32UF,Building Control,Buildings Maintenance - Programmed,03/07/2014,IJ00030747,715.00,Brooks (Spalding) Ltd, 
South Holland District Council,http://statistics.data.gov.uk/id/local-authority/32UF,Finance,Professional & Contractors Fees,03/07/2014,IJ00030659,1063.92,Capita Business Services Ltd, 
South Holland District Council,http://statistics.data.gov.uk/id/local-authority/32UF,Finance,Professional & Contractors Fees,03/07/2014,IJ00030789,1121.70,Capita Business Services Ltd, 
South Holland District Council,http://statistics.data.gov.uk/id/local-authority/32UF,Housing Landlord Manager,Professional & Contractors Fees,03/07/2014,IJ00030763,4800.00,Capita Property and infrastructure Ltd, 
South Holland District Council,http://statistics.data.gov.uk/id/local-authority/32UF,Housing Landlord Manager,Fuel & Oil,03/07/2014,IJ00030765,400.12,C H Jones Ltd, 
South Holland District Council,http://statistics.data.gov.uk/id/local-authority/32UF,Environmental Services,Fuel & Oil,03/07/2014,IJ00030765,380.72,C H Jones Ltd, 
South Holland District Council,http://statistics.data.gov.uk/id/local-authority/32UF,Environmental Services,Fuel & Oil,03/07/2014,IJ00030765,2365.62,C H Jones Ltd, 
South Holland District Council,http://statistics.data.gov.uk/id/local-authority/32UF,Environmental Services,Fuel & Oil,03/07/2014,IJ00030765,786.58,C H Jones Ltd, 
South Holland District Council,http://statistics.data.gov.uk/id/local-authority/32UF,Environmental Services,Fuel & Oil,03/07/2014,IJ00030765,2808.13,C H Jones Ltd, 
South Holland District Council,http://statistics.data.gov.uk/id/local-authority/32UF,Housing Landlord Manager,Fuel & Oil,03/07/2014,IJ00030765,305.15,C H Jones Ltd, 
South Holland District Council,http://statistics.data.gov.uk/id/local-authority/32UF,Housing Landlord Manager,Fuel & Oil,03/07/2014,IJ00030765,364.88,C H Jones Ltd, 
South Holland District Council,http://statistics.data.gov.uk/id/local-authority/32UF,Environmental Services,Fuel & Oil,03/07/2014,IJ00030765,46.35,C H Jones Ltd, 
South Holland District Council,http://statistics.data.gov.uk/id/local-authority/32UF,Environmental Services,Other Communication Costs,03/07/2014,IJ00030584,1137.00,Classic Printers, 
South Holland District Council,http://statistics.data.gov.uk/id/local-authority/32UF,Finance,Compass Point Business Services,03/07/2014,IJ00030771,248630.66,Compass Point Business Srvcs (East Coast) Ltd, 
South Holland District Council,http://statistics.data.gov.uk/id/local-authority/32UF,Community Development,Film and Entertainment Costs,03/07/2014,IJ00030792,1269.07,Entertainment Film Distribution Ltd, 
South Holland District Council,http://statistics.data.gov.uk/id/local-authority/32UF,Asset and Property,Furniture and Equipment,03/07/2014,IJ00030692,850.00,E.On, 
South Holland District Council,http://statistics.data.gov.uk/id/local-authority/32UF,Environmental Services,Materials and Consumables,03/07/2014,IJ00030774,8954.70,Glenside Nurseries Ltd, 
South Holland District Council,http://statistics.data.gov.uk/id/local-authority/32UF,Housing Landlord Manager,Void Decoration,03/07/2014,IJ00030624,766.66,Homebase Limited, 
South Holland District Council,http://statistics.data.gov.uk/id/local-authority/32UF,Housing Landlord Manager,Void Decoration,03/07/2014,IJ00030625,600.00,Homebase Limited, 
South Holland District Council,http://statistics.data.gov.uk/id/local-authority/32UF,Housing Landlord Manager,Materials and Consumables,03/07/2014,IJ00030606,3500.46,Jackson Buildbase, 
South Holland District Council,http://statistics.data.gov.uk/id/local-authority/32UF,Housing Landlord Manager,Materials and Consumables,03/07/2014,IJ00030606,1387.86,Jackson Buildbase, 
South Holland District Council,http://statistics.data.gov.uk/id/local-authority/32UF,Housing Landlord Manager,Materials and Consumables,03/07/2014,IJ00030606,1032.37,Jackson Buildbase, 
South Holland District Council,http://statistics.data.gov.uk/id/local-authority/32UF,Housing Landlord Manager,Agency Staff,03/07/2014,IJ00030622,848.78,James Andrews Recruitment Solutions, 
South Holland District Council,http://statistics.data.gov.uk/id/local-authority/32UF,Housing Landlord Manager,Agency Staff,03/07/2014,IJ00030623,848.78,James Andrews Recruitment Solutions, 
South Holland District Council,http://statistics.data.gov.uk/id/local-authority/32UF,Community Development,Leisure Management,03/07/2014,IJ00030610,528.38,Leisure In The Community Ltd, 
South Holland District Council,http://statistics.data.gov.uk/id/local-authority/32UF,Community Development,Leisure Management,03/07/2014,IJ00030610,528.37,Leisure In The Community Ltd, 
South Holland District Council,http://statistics.data.gov.uk/id/local-authority/32UF,Democratic Services,Stationery,03/07/2014,IJ00030666,949.00,Lexisnexis Uk, 
South Holland District Council,http://statistics.data.gov.uk/id/local-authority/32UF,Housing Landlord Manager,Commercial Vehicle Lease,03/07/2014,IJ00030761,216.00,Navman Wireless Uk Ltd, 
South Holland District Council,http://statistics.data.gov.uk/id/local-authority/32UF,Housing Landlord Manager,Commercial Vehicle Lease,03/07/2014,IJ00030761,936.00,Navman Wireless Uk Ltd, 
South Holland District Council,http://statistics.data.gov.uk/id/local-authority/32UF,Housing Landlord Manager,Commercial Vehicle Lease,03/07/2014,IJ00030761,504.00,Navman Wireless Uk Ltd, 
South Holland District Council,http://statistics.data.gov.uk/id/local-authority/32UF,Housing Landlord Manager,Professional & Contractors Fees,03/07/2014,IJ00030649,900.00,Northgate Information Solutions Uk Ltd, 
South Holland District Council,http://statistics.data.gov.uk/id/local-authority/32UF,Housing Landlord Manager,Commercial Vehicle Lease,03/07/2014,IJ00030730,520.00,Northgate Vehicle Hire (East Midlands) Ltd, 
South Holland District Council,http://statistics.data.gov.uk/id/local-authority/32UF,Democratic Services,Course Fees,03/07/2014,IJ00030670,525.00,Nottinghamshire County Council, 
South Holland District Council,http://statistics.data.gov.uk/id/local-authority/32UF,Environmental Services,Professional & Contractors Fees,03/07/2014,IJ00030645,1281.20,Ocs Group Uk Limited TA Cannon, 
South Holland District Council,http://statistics.data.gov.uk/id/local-authority/32UF,Planning,Grants and Contributions to Outside Bodies- No Service Recei,03/07/2014,IJ00030639,2000.00,Plann.It Limited, 
South Holland District Council,http://statistics.data.gov.uk/id/local-authority/32UF,Housing Landlord Manager,Electricity,03/07/2014,IJ00030716,47.57,Southern Electric, 
South Holland District Council,http://statistics.data.gov.uk/id/local-authority/32UF,Housing Landlord Manager,Electricity,03/07/2014,IJ00030716,60.15,Southern Electric, 
South Holland District Council,http://statistics.data.gov.uk/id/local-authority/32UF,Housing Landlord Manager,Electricity,03/07/2014,IJ00030716,3004.14,Southern Electric, 
South Holland District Council,http://statistics.data.gov.uk/id/local-authority/32UF,Housing Landlord Manager,Electricity,03/07/2014,IJ00030716,48.60,Southern Electric, 
South Holland District Council,http://statistics.data.gov.uk/id/local-authority/32UF,Housing Landlord Manager,Electricity,03/07/2014,IJ00030716,35.50,Southern Electric, 
South Holland District Council,http://statistics.data.gov.uk/id/local-authority/32UF,Housing Landlord Manager,Electricity,03/07/2014,IJ00030716,229.66,Southern Electric, 
South Holland District Council,http://statistics.data.gov.uk/id/local-authority/32UF,Housing Landlord Manager,Electricity,03/07/2014,IJ00030716,257.19,Southern Electric, 
South Holland District Council,http://statistics.data.gov.uk/id/local-authority/32UF,Housing Landlord Manager,Electricity,03/07/2014,IJ00030716,69.26,Southern Electric, 
South Holland District Council,http://statistics.data.gov.uk/id/local-authority/32UF,Housing Landlord Manager,Electricity,03/07/2014,IJ00030716,94.18,Southern Electric, 
South Holland District Council,http://statistics.data.gov.uk/id/local-authority/32UF,Housing Landlord Manager,Electricity,03/07/2014,IJ00030716,57.65,Southern Electric, 
South Holland District Council,http://statistics.data.gov.uk/id/local-authority/32UF,Housing Landlord Manager,Electricity,03/07/2014,IJ00030716,127.38,Southern Electric, 
South Holland District Council,http://statistics.data.gov.uk/id/local-authority/32UF,Housing Landlord Manager,Electricity,03/07/2014,IJ00030716,75.82,Southern Electric, 
South Holland District Council,http://statistics.data.gov.uk/id/local-authority/32UF,Housing Landlord Manager,Electricity,03/07/2014,IJ00030716,47.36,Southern Electric, 
South Holland District Council,http://statistics.data.gov.uk/id/local-authority/32UF,Environmental Services,Electricity,03/07/2014,IJ00030716,91.18,Southern Electric, 
South Holland District Council,http://statistics.data.gov.uk/id/local-authority/32UF,Environmental Services,Electricity,03/07/2014,IJ00030716,70.56,Southern Electric, 
South Holland District Council,http://statistics.data.gov.uk/id/local-authority/32UF,Housing Landlord Manager,Electricity,03/07/2014,IJ00030716,184.29,Southern Electric, 
South Holland District Council,http://statistics.data.gov.uk/id/local-authority/32UF,Housing Landlord Manager,Electricity,03/07/2014,IJ00030716,257.81,Southern Electric, 
South Holland District Council,http://statistics.data.gov.uk/id/local-authority/32UF,Housing Landlord Manager,Electricity,03/07/2014,IJ00030716,67.67,Southern Electric, 
South Holland District Council,http://statistics.data.gov.uk/id/local-authority/32UF,Housing Landlord Manager,Electricity,03/07/2014,IJ00030716,159.65,Southern Electric, 
South Holland District Council,http://statistics.data.gov.uk/id/local-authority/32UF,Housing Landlord Manager,Electricity,03/07/2014,IJ00030716,407.83,Southern Electric, 
South Holland District Council,http://statistics.data.gov.uk/id/local-authority/32UF,Housing Landlord Manager,Electricity,03/07/2014,IJ00030716,167.28,Southern Electric, 
South Holland District Council,http://statistics.data.gov.uk/id/local-authority/32UF,Housing Landlord Manager,Electricity,03/07/2014,IJ00030716,86.13,Southern Electric, 
South Holland District Council,http://statistics.data.gov.uk/id/local-authority/32UF,Housing Landlord Manager,Electricity,03/07/2014,IJ00030716,61.38,Southern Electric, 
South Holland District Council,http://statistics.data.gov.uk/id/local-authority/32UF,Housing Landlord Manager,Electricity,03/07/2014,IJ00030716,82.25,Southern Electric, 
South Holland District Council,http://statistics.data.gov.uk/id/local-authority/32UF,Housing Landlord Manager,Electricity,03/07/2014,IJ00030716,63.10,Southern Electric, 
South Holland District Council,http://statistics.data.gov.uk/id/local-authority/32UF,Housing Landlord Manager,Electricity,03/07/2014,IJ00030716,77.84,Southern Electric, 
South Holland District Council,http://statistics.data.gov.uk/id/local-authority/32UF,Housing Landlord Manager,Electricity,03/07/2014,IJ00030716,201.72,Southern Electric, 
South Holland District Council,http://statistics.data.gov.uk/id/local-authority/32UF,Housing Landlord Manager,Electricity,03/07/2014,IJ00030716,162.63,Southern Electric, 
South Holland District Council,http://statistics.data.gov.uk/id/local-authority/32UF,Housing Landlord Manager,Electricity,03/07/2014,IJ00030716,94.90,Southern Electric, 
South Holland District Council,http://statistics.data.gov.uk/id/local-authority/32UF,Housing Landlord Manager,Electricity,03/07/2014,IJ00030716,95.10,Southern Electric, 
South Holland District Council,http://statistics.data.gov.uk/id/local-authority/32UF,Housing Landlord Manager,Electricity,03/07/2014,IJ00030716,80.62,Southern Electric, 
South Holland District Council,http://statistics.data.gov.uk/id/local-authority/32UF,Housing Landlord Manager,Electricity,03/07/2014,IJ00030716,151.24,Southern Electric, 
South Holland District Council,http://statistics.data.gov.uk/id/local-authority/32UF,Housing Landlord Manager,Electricity,03/07/2014,IJ00030716,113.77,Southern Electric, 
South Holland District Council,http://statistics.data.gov.uk/id/local-authority/32UF,Housing Landlord Manager,Electricity,03/07/2014,IJ00030716,61.90,Southern Electric, 
South Holland District Council,http://statistics.data.gov.uk/id/local-authority/32UF,Environmental Services,Electricity,03/07/2014,IJ00030716,337.40,Southern Electric, 
South Holland District Council,http://statistics.data.gov.uk/id/local-authority/32UF,Environmental Services,Electricity,03/07/2014,IJ00030716,39.22,Southern Electric, 
South Holland District Council,http://statistics.data.gov.uk/id/local-authority/32UF,Environmental Services,Electricity,03/07/2014,IJ00030716,159.13,Southern Electric, 
South Holland District Council,http://statistics.data.gov.uk/id/local-authority/32UF,Housing Landlord Manager,Electricity,03/07/2014,IJ00030716,238.01,Southern Electric, 
South Holland District Council,http://statistics.data.gov.uk/id/local-authority/32UF,Housing Landlord Manager,Electricity,03/07/2014,IJ00030716,82.60,Southern Electric, 
South Holland District Council,http://statistics.data.gov.uk/id/local-authority/32UF,Housing Landlord Manager,Electricity,03/07/2014,IJ00030716,43.97,Southern Electric, 
South Holland District Council,http://statistics.data.gov.uk/id/local-authority/32UF,Housing Landlord Manager,Electricity,03/07/2014,IJ00030716,52.18,Southern Electric, 
South Holland District Council,http://statistics.data.gov.uk/id/local-authority/32UF,Housing Landlord Manager,Electricity,03/07/2014,IJ00030716,32.04,Southern Electric, 
South Holland District Council,http://statistics.data.gov.uk/id/local-authority/32UF,Housing Landlord Manager,Electricity,03/07/2014,IJ00030716,148.00,Southern Electric, 
South Holland District Council,http://statistics.data.gov.uk/id/local-authority/32UF,Housing Landlord Manager,Electricity,03/07/2014,IJ00030716,127.38,Southern Electric, 
South Holland District Council,http://statistics.data.gov.uk/id/local-authority/32UF,Housing Landlord Manager,Electricity,03/07/2014,IJ00030716,185.84,Southern Electric, 
South Holland District Council,http://statistics.data.gov.uk/id/local-authority/32UF,Housing Landlord Manager,Electricity,03/07/2014,IJ00030716,119.81,Southern Electric, 
South Holland District Council,http://statistics.data.gov.uk/id/local-authority/32UF,Housing Landlord Manager,Electricity,03/07/2014,IJ00030716,47.46,Southern Electric, 
South Holland District Council,http://statistics.data.gov.uk/id/local-authority/32UF,Housing Landlord Manager,Electricity,03/07/2014,IJ00030716,77.26,Southern Electric, 
South Holland District Council,http://statistics.data.gov.uk/id/local-authority/32UF,Housing Landlord Manager,Electricity,03/07/2014,IJ00030716,66.44,Southern Electric, 
South Holland District Council,http://statistics.data.gov.uk/id/local-authority/32UF,Asset and Property,Electricity,03/07/2014,IJ00030716,49.21,Southern Electric, 
South Holland District Council,http://statistics.data.gov.uk/id/local-authority/32UF,Housing Landlord Manager,Electricity,03/07/2014,IJ00030716,60.09,Southern Electric, 
South Holland District Council,http://statistics.data.gov.uk/id/local-authority/32UF,Community Development,Electricity,03/07/2014,IJ00030716,851.30,Southern Electric, 
South Holland District Council,http://statistics.data.gov.uk/id/local-authority/32UF,Community Development,Electricity,03/07/2014,IJ00030716,200.87,Southern Electric, 
South Holland District Council,http://statistics.data.gov.uk/id/local-authority/32UF,Capital,Works to Buildings (main Contractor),03/07/2014,IJ00030630,32963.00,The Keepmoat Grp t a The Apollo Grp, 
South Holland District Council,http://statistics.data.gov.uk/id/local-authority/32UF,Capital,Works to Buildings (main Contractor),03/07/2014,IJ00030759,14772.73,The Keepmoat Grp t a The Apollo Grp, 
South Holland District Council,http://statistics.data.gov.uk/id/local-authority/32UF,Environmental Services,Agency Staff,03/07/2014,IJ00030687,441.78,The Best Connection Group Ltd, 
South Holland District Council,http://statistics.data.gov.uk/id/local-authority/32UF,Environmental Services,Agency Staff,03/07/2014,IJ00030687,130.20,The Best Connection Group Ltd, 
South Holland District Council,http://statistics.data.gov.uk/id/local-authority/32UF,Housing Landlord Manager,Materials and Consumables,03/07/2014,IJ00030604,1185.00,Trent Fireplaces, 
South Holland District Council,http://statistics.data.gov.uk/id/local-authority/32UF,Housing Landlord Manager,Materials and Consumables,03/07/2014,IJ00030604,1185.00,Trent Fireplaces, 
South Holland District Council,http://statistics.data.gov.uk/id/local-authority/32UF,Democratic Services,Other Miscellaneous Expenses,03/07/2014,IJ00030585,1000.00,Whaplode Drove Playing Field Association, 
South Holland District Council,http://statistics.data.gov.uk/id/local-authority/32UF,Housing Landlord Manager,Void Repairs,03/07/2014,IJ00030664,730.00,Spotless Cleaning, 
South Holland District Council,http://statistics.data.gov.uk/id/local-authority/32UF,Housing,Other Miscellaneous Expenses,03/07/2014,IJ00030764,29757.00,Broadgate Builders (Spalding) Ltd, 
South Holland District Council,http://statistics.data.gov.uk/id/local-authority/32UF,Collection Fund,Precept- Lincolnshire County Council,03/07/2014,IJ00030740,2999705.00,Lincolnshire County Council, 
South Holland District Council,http://statistics.data.gov.uk/id/local-authority/32UF,Collection Fund,Precept - Lincolnshire Police,03/07/2014,IJ00030741,500188.39,LOCAL POLICE AUTHORITY FUND ACCOUNT, 
South Holland District Council,http://statistics.data.gov.uk/id/local-authority/32UF,Finance,Professional & Contractors Fees,03/07/2014,IJ00030781,607.21,Lloyds TSB, 
South Holland District Council,http://statistics.data.gov.uk/id/local-authority/32UF,Housing Landlord Manager,Buildings Maintenance - Responsive,03/07/2014,IJ00030710,2405.00,B J ROOFING, 
South Holland District Council,http://statistics.data.gov.uk/id/local-authority/32UF,Housing Landlord Manager,Buildings Maintenance - Responsive,03/07/2014,IJ00030711,1090.00,B J ROOFING, 
South Holland District Council,http://statistics.data.gov.uk/id/local-authority/32UF,Housing Landlord Manager,Buildings Maintenance - Responsive,03/07/2014,IJ00030767,998.00,B J ROOFING, 
South Holland District Council,http://statistics.data.gov.uk/id/local-authority/32UF,Housing Landlord Manager,Buildings Maintenance - Responsive,03/07/2014,IJ00030766,1450.00,LANDY VENT UK LIMITED, 
South Holland District Council,http://statistics.data.gov.uk/id/local-authority/32UF,Housing,Grants and Contributions to Outside Bodies- No Service Recei,03/07/2014,IJ00030671,2205.00,MPL HOME IMPROVEMENTS SERVICES LINCS LTD, 
South Holland District Council,http://statistics.data.gov.uk/id/local-authority/32UF,Housing,Grants and Contributions to Outside Bodies- No Service Recei,03/07/2014,IJ00030768,2250.00,MPL HOME IMPROVEMENTS SERVICES LINCS LTD, 
South Holland District Council,http://statistics.data.gov.uk/id/local-authority/32UF,Community Development,Payments to Bodies in Respect of Income Collected,03/07/2014,IJ00030595,1905.00,RSPB South Lincs Local Group, 
South Holland District Council,http://statistics.data.gov.uk/id/local-authority/32UF,Community Development,Commission,03/07/2014,IJ00030595,-158.75,RSPB South Lincs Local Group, 
South Holland District Council,http://statistics.data.gov.uk/id/local-authority/32UF,Housing Landlord Manager,External Painting Repairs,03/07/2014,IJ00030629,12711.00,Novus Property Solutions Ltd, 
South Holland District Council,http://statistics.data.gov.uk/id/local-authority/32UF,Capital,Works to Buildings (main Contractor),03/07/2014,IJ00030631,895.00,MCP Environmental, 
South Holland District Council,http://statistics.data.gov.uk/id/local-authority/32UF,Housing Landlord Manager,Professional & Contractors Fees,03/07/2014,IJ00030616,14369.00,DMW Environmental Safety Ltd, 
South Holland District Council,http://statistics.data.gov.uk/id/local-authority/32UF,Housing Landlord Manager,Gas Renewals,03/07/2014,IJ00030632,8944.95,Aaron Services Ltd, 
South Holland District Council,http://statistics.data.gov.uk/id/local-authority/32UF,Housing Landlord Manager,Gas Repairs,03/07/2014,IJ00030633,7469.06,Aaron Services Ltd, 
South Holland District Council,http://statistics.data.gov.uk/id/local-authority/32UF,Housing Landlord Manager,Gas Servicing,03/07/2014,IJ00030634,22259.17,Aaron Services Ltd, 
South Holland District Council,http://statistics.data.gov.uk/id/local-authority/32UF,Environmental Services,Other Communication Costs,03/07/2014,IJ00030641,552.00,Argon Promotions, 
South Holland District Council,http://statistics.data.gov.uk/id/local-authority/32UF,Housing Landlord Manager,Furniture and Equipment,03/07/2014,IJ00030654,2342.88,The Safety Letterbox Company Ltd, 
South Holland District Council,http://statistics.data.gov.uk/id/local-authority/32UF,Economic Development,Grants and Contributions to Outside Bodies- No Service Recei,03/07/2014,IJ00030784,4141.25,Quarterbridge Project Management Limited, 
South Holland District Council,http://statistics.data.gov.uk/id/local-authority/32UF,Planning,Professional & Contractors Fees,03/07/2014,IJ00030614,1050.00,MatchTech Group Plc, 
South Holland District Council,http://statistics.data.gov.uk/id/local-authority/32UF,Economic Development,Grants and Contributions to Outside Bodies- No Service Recei,03/07/2014,IJ00030588,2680.00,AUBOURN FIREWOOD LTD, 
South Holland District Council,http://statistics.data.gov.uk/id/local-authority/32UF,Capital,Works to Buildings (main Contractor),03/07/2014,IJ00030791,83592.60,Kensa Contracting Ltd, 
South Holland District Council,http://statistics.data.gov.uk/id/local-authority/32UF,Capital,CIS Tax,03/07/2014,IJ00030791,-14587.16,Kensa Contracting Ltd, 
South Holland District Council,http://statistics.data.gov.uk/id/local-authority/32UF,Community Development,Performers and Entertainers Fees,03/07/2014,IJ00030695,3947.98,Fairport Convention Touring, 
South Holland District Council,http://statistics.data.gov.uk/id/local-authority/32UF,Democratic Services,Other Miscellaneous Expenses,03/07/2014,IJ00030602,500.00,Training Employment Support Solutions CIC, 
South Holland District Council,http://statistics.data.gov.uk/id/local-authority/32UF,Planning,Grants and Contributions to Outside Bodies- No Service Recei,03/07/2014,IJ00030777,4535.83,REDACTED PERSONAL INFORMATION,REDACT
South Holland District Council,http://statistics.data.gov.uk/id/local-authority/32UF,Environmental Services,Agency Staff,10/07/2014,IJ00030897,459.00,247 Personnel Ltd, 
South Holland District Council,http://statistics.data.gov.uk/id/local-authority/32UF,Environmental Services,Agency Staff,10/07/2014,IJ00030897,207.00,247 Personnel Ltd, 
South Holland District Council,http://statistics.data.gov.uk/id/local-authority/32UF,Asset and Property,Agency Staff,10/07/2014,IJ00030885,911.17,5 Star Facility Management, 
South Holland District Council,http://statistics.data.gov.uk/id/local-authority/32UF,Housing Landlord Manager,Materials and Consumables,10/07/2014,IJ00030922,3630.00,Alvey Fireplaces Ltd, 
South Holland District Council,http://statistics.data.gov.uk/id/local-authority/32UF,Environmental Services,Water and Sewerage Charges,10/07/2014,IJ00030832,610.73,Anglian Water, 
South Holland District Council,http://statistics.data.gov.uk/id/local-authority/32UF,Housing Landlord Manager,Materials and Consumables,10/07/2014,IJ00030954,121.70,B Ayres, 
South Holland District Council,http://statistics.data.gov.uk/id/local-authority/32UF,Housing Landlord Manager,Materials and Consumables,10/07/2014,IJ00030954,443.95,B Ayres, 
South Holland District Council,http://statistics.data.gov.uk/id/local-authority/32UF,Housing Landlord Manager,Materials and Consumables,10/07/2014,IJ00030954,94.70,B Ayres, 
South Holland District Council,http://statistics.data.gov.uk/id/local-authority/32UF,Environmental Services,Agency Staff,10/07/2014,IJ00030895,157.33,Blue Arrow Ltd, 
South Holland District Council,http://statistics.data.gov.uk/id/local-authority/32UF,Environmental Services,Agency Staff,10/07/2014,IJ00030895,984.55,Blue Arrow Ltd, 
South Holland District Council,http://statistics.data.gov.uk/id/local-authority/32UF,Environmental Services,Agency Staff,10/07/2014,IJ00030895,1408.31,Blue Arrow Ltd, 
South Holland District Council,http://statistics.data.gov.uk/id/local-authority/32UF,Environmental Services,Agency Staff,10/07/2014,IJ00030895,76.13,Blue Arrow Ltd, 
South Holland District Council,http://statistics.data.gov.uk/id/local-authority/32UF,Housing Landlord Manager,Sewerage Treatment Works,10/07/2014,IJ00030958,19910.18,C.G. Godfrey Ltd, 
South Holland District Council,http://statistics.data.gov.uk/id/local-authority/32UF,Housing Landlord Manager,Sewerage Treatment Works,10/07/2014,IJ00030958,100.00,C.G. Godfrey Ltd, 
South Holland District Council,http://statistics.data.gov.uk/id/local-authority/32UF,Environmental Services,Fuel & Oil,10/07/2014,IJ00030796,1343.00,Chandlers Oil And Gas, 
South Holland District Council,http://statistics.data.gov.uk/id/local-authority/32UF,Housing Landlord Manager,Fuel & Oil,10/07/2014,IJ00030909,692.67,C H Jones Ltd, 
South Holland District Council,http://statistics.data.gov.uk/id/local-authority/32UF,Environmental Services,Fuel & Oil,10/07/2014,IJ00030909,8.09,C H Jones Ltd, 
South Holland District Council,http://statistics.data.gov.uk/id/local-authority/32UF,Environmental Services,Fuel & Oil,10/07/2014,IJ00030909,265.88,C H Jones Ltd, 
South Holland District Council,http://statistics.data.gov.uk/id/local-authority/32UF,Environmental Services,Fuel & Oil,10/07/2014,IJ00030909,1850.63,C H Jones Ltd, 
South Holland District Council,http://statistics.data.gov.uk/id/local-authority/32UF,Environmental Services,Fuel & Oil,10/07/2014,IJ00030909,695.60,C H Jones Ltd, 
South Holland District Council,http://statistics.data.gov.uk/id/local-authority/32UF,Environmental Services,Fuel & Oil,10/07/2014,IJ00030909,3108.80,C H Jones Ltd, 
South Holland District Council,http://statistics.data.gov.uk/id/local-authority/32UF,Housing Landlord Manager,Fuel & Oil,10/07/2014,IJ00030909,103.54,C H Jones Ltd, 
South Holland District Council,http://statistics.data.gov.uk/id/local-authority/32UF,Housing Landlord Manager,Fuel & Oil,10/07/2014,IJ00030909,119.98,C H Jones Ltd, 
South Holland District Council,http://statistics.data.gov.uk/id/local-authority/32UF,Environmental Services,Fuel & Oil,10/07/2014,IJ00030909,43.97,C H Jones Ltd, 
South Holland District Council,http://statistics.data.gov.uk/id/local-authority/32UF,Environmental Services,Fuel & Oil,10/07/2014,IJ00030909,8.08,C H Jones Ltd, 
South Holland District Council,http://statistics.data.gov.uk/id/local-authority/32UF,Environmental Health,Fuel & Oil,10/07/2014,IJ00030909,50.91,C H Jones Ltd, 
South Holland District Council,http://statistics.data.gov.uk/id/local-authority/32UF,Environmental Services,Fuel & Oil,10/07/2014,IJ00030909,82.02,C H Jones Ltd, 
South Holland District Council,http://statistics.data.gov.uk/id/local-authority/32UF,Housing Landlord Manager,Other Communication Costs,10/07/2014,IJ00030795,9993.68,Cirrus Communication Systems Ltd, 
South Holland District Council,http://statistics.data.gov.uk/id/local-authority/32UF,Environmental Services,Maintenance,10/07/2014,IJ00030896,4364.53,C P Davidson & Sons Ltd, 
South Holland District Council,http://statistics.data.gov.uk/id/local-authority/32UF,Environmental Services,Maintenance,10/07/2014,IJ00030896,6546.77,C P Davidson & Sons Ltd, 
South Holland District Council,http://statistics.data.gov.uk/id/local-authority/32UF,Environmental Services,Maintenance,10/07/2014,IJ00030896,6550.46,C P Davidson & Sons Ltd, 
South Holland District Council,http://statistics.data.gov.uk/id/local-authority/32UF,Environmental Services,Maintenance,10/07/2014,IJ00030896,164.38,C P Davidson & Sons Ltd, 
South Holland District Council,http://statistics.data.gov.uk/id/local-authority/32UF,Environmental Services,Grounds Maintenance Recharge,10/07/2014,IJ00030952,1945.00,Greenscape Tree Safe Ltd, 
South Holland District Council,http://statistics.data.gov.uk/id/local-authority/32UF,Environmental Services,Furniture and Equipment,10/07/2014,IJ00030811,1747.31,Ing Lease (Uk) Ltd, 
South Holland District Council,http://statistics.data.gov.uk/id/local-authority/32UF,Environmental Services,Commercial Vehicle Lease,10/07/2014,IJ00030811,5640.00,Ing Lease (Uk) Ltd, 
South Holland District Council,http://statistics.data.gov.uk/id/local-authority/32UF,Environmental Services,Agency Staff,10/07/2014,IJ00030812,299.51,Integrity Plus Ltd, 
South Holland District Council,http://statistics.data.gov.uk/id/local-authority/32UF,Environmental Services,Agency Staff,10/07/2014,IJ00030812,363.34,Integrity Plus Ltd, 
South Holland District Council,http://statistics.data.gov.uk/id/local-authority/32UF,Environmental Services,Agency Staff,10/07/2014,IJ00030894,363.34,Integrity Plus Ltd, 
South Holland District Council,http://statistics.data.gov.uk/id/local-authority/32UF,Environmental Services,Agency Staff,10/07/2014,IJ00030894,363.34,Integrity Plus Ltd, 
South Holland District Council,http://statistics.data.gov.uk/id/local-authority/32UF,Housing Landlord Manager,Materials and Consumables,10/07/2014,IJ00030955,3463.37,Jackson Buildbase, 
South Holland District Council,http://statistics.data.gov.uk/id/local-authority/32UF,Housing Landlord Manager,Materials and Consumables,10/07/2014,IJ00030955,2797.55,Jackson Buildbase, 
South Holland District Council,http://statistics.data.gov.uk/id/local-authority/32UF,Housing Landlord Manager,Materials and Consumables,10/07/2014,IJ00030955,679.33,Jackson Buildbase, 
South Holland District Council,http://statistics.data.gov.uk/id/local-authority/32UF,ICT and Customer Services,Computer Hardware Maintenance,10/07/2014,IJ00030995,2230.01,Lincolnshire County Council, 
South Holland District Council,http://statistics.data.gov.uk/id/local-authority/32UF,Democratic Services,Other Miscellaneous Expenses,10/07/2014,IJ00030957,600.00,Lincolnshire Police Authority, 
South Holland District Council,http://statistics.data.gov.uk/id/local-authority/32UF,Environmental Health,Legal Fees,10/07/2014,IJ00030805,19530.00,REDACTED PERSONAL INFORMATION,REDACT
South Holland District Council,http://statistics.data.gov.uk/id/local-authority/32UF,Housing,Grants and Contributions to Outside Bodies- No Service Recei,10/07/2014,IJ00030971,2991.00,M E Goodyear Property Maintenance, 
South Holland District Council,http://statistics.data.gov.uk/id/local-authority/32UF,Housing,Grants and Contributions to Outside Bodies- No Service Recei,10/07/2014,IJ00030984,2635.00,M E Goodyear Property Maintenance, 
South Holland District Council,http://statistics.data.gov.uk/id/local-authority/32UF,Housing Landlord Manager,Buildings Maintenance - Responsive,10/07/2014,IJ00030918,4786.70,M & R Glass & Glazing Ltd, 
South Holland District Council,http://statistics.data.gov.uk/id/local-authority/32UF,Housing Landlord Manager,Buildings Maintenance - Responsive,10/07/2014,IJ00030919,1334.00,M & R Glass & Glazing Ltd, 
South Holland District Council,http://statistics.data.gov.uk/id/local-authority/32UF,Housing Landlord Manager,Staff Training Expenses,10/07/2014,IJ00030876,657.00,Northern Housing Consortium Ltd, 
South Holland District Council,http://statistics.data.gov.uk/id/local-authority/32UF,Environmental Services,Professional & Contractors Fees,10/07/2014,IJ00030837,1080.44,Ocs Group Uk Limited TA Cannon, 
South Holland District Council,http://statistics.data.gov.uk/id/local-authority/32UF,Housing Landlord Manager,Professional & Contractors Fees,10/07/2014,IJ00030881,1980.00,Oglesby & Limb Ltd, 
South Holland District Council,http://statistics.data.gov.uk/id/local-authority/32UF,Community Development,Performers and Entertainers Fees,10/07/2014,IJ00030879,896.07,Picturehouse Entertainment Limited, 
South Holland District Council,http://statistics.data.gov.uk/id/local-authority/32UF,Housing Landlord Manager,Materials and Consumables,10/07/2014,IJ00030911,540.03,Rexel Uk Ltd, 
South Holland District Council,http://statistics.data.gov.uk/id/local-authority/32UF,Capital,Purchase of Buildings,10/07/2014,IJ00030986,110000.00,Roythorne & Co., 
South Holland District Council,http://statistics.data.gov.uk/id/local-authority/32UF,Community Development,Electricity,10/07/2014,IJ00030863,2049.44,Southern Electric, 
South Holland District Council,http://statistics.data.gov.uk/id/local-authority/32UF,Environmental Services,Professional & Contractors Fees,10/07/2014,IJ00030797,3908.89,South Holland Maintenance Ltd, 
South Holland District Council,http://statistics.data.gov.uk/id/local-authority/32UF,Housing Landlord Manager,Materials and Consumables,10/07/2014,IJ00030915,755.00,South Holland Maintenance Ltd, 
South Holland District Council,http://statistics.data.gov.uk/id/local-authority/32UF,Housing Landlord Manager,Void Repairs,10/07/2014,IJ00030947,2495.00,South Holland Maintenance Ltd, 
South Holland District Council,http://statistics.data.gov.uk/id/local-authority/32UF,Asset and Property,Buildings Maintenance - Responsive,10/07/2014,IJ00030886,585.00,Stanair Industrial Door Services Ltd, 
South Holland District Council,http://statistics.data.gov.uk/id/local-authority/32UF,Democratic Services,Other Miscellaneous Expenses,10/07/2014,IJ00030953,2053.60,Sutton Bridge Community Centre Fund, 
South Holland District Council,http://statistics.data.gov.uk/id/local-authority/32UF,Environmental Services,Agency Staff,10/07/2014,IJ00030899,268.65,The Best Connection Group Ltd, 
South Holland District Council,http://statistics.data.gov.uk/id/local-authority/32UF,Environmental Services,Agency Staff,10/07/2014,IJ00030899,614.91,The Best Connection Group Ltd, 
South Holland District Council,http://statistics.data.gov.uk/id/local-authority/32UF,Environmental Services,Agency Staff,10/07/2014,IJ00030899,186.62,The Best Connection Group Ltd, 
South Holland District Council,http://statistics.data.gov.uk/id/local-authority/32UF,Capital,Works to Buildings (main Contractor),10/07/2014,IJ00030822,2205.00,Tks Of Holbeach, 
South Holland District Council,http://statistics.data.gov.uk/id/local-authority/32UF,Environmental Services,Professional & Contractors Fees,10/07/2014,IJ00030905,580.00,West & East Anglia Asbestos Removals Ltd, 
South Holland District Council,http://statistics.data.gov.uk/id/local-authority/32UF,Housing Landlord Manager,Void Repairs,10/07/2014,IJ00030945,800.00,Spotless Cleaning, 
South Holland District Council,http://statistics.data.gov.uk/id/local-authority/32UF,Democratic Services,Other Miscellaneous Expenses,10/07/2014,IJ00030804,500.00,HOLBEACH IN BLOOM, 
South Holland District Council,http://statistics.data.gov.uk/id/local-authority/32UF,Finance,Professional & Contractors Fees,10/07/2014,IJ00030988,569.56,Lloyds TSB, 
South Holland District Council,http://statistics.data.gov.uk/id/local-authority/32UF,Housing Landlord Manager,Furniture and Equipment,10/07/2014,IJ00030943,1200.83,Hilti GB Ltd, 
South Holland District Council,http://statistics.data.gov.uk/id/local-authority/32UF,Housing Landlord Manager,Furniture and Equipment,10/07/2014,IJ00030943,722.57,Hilti GB Ltd, 
South Holland District Council,http://statistics.data.gov.uk/id/local-authority/32UF,ICT and Customer Services,Computer Hardware Maintenance,10/07/2014,IJ00030835,4780.00,IT Bus Ltd, 
South Holland District Council,http://statistics.data.gov.uk/id/local-authority/32UF,Housing Landlord Manager,Void Repairs,10/07/2014,IJ00030944,855.42,Sustainable Energy Connection  Ltd, 
South Holland District Council,http://statistics.data.gov.uk/id/local-authority/32UF,Housing Landlord Manager,Void Repairs,10/07/2014,IJ00030960,2364.03,Response Construction Maintenance Limited, 
South Holland District Council,http://statistics.data.gov.uk/id/local-authority/32UF,Democratic Services,Other Miscellaneous Expenses,10/07/2014,IJ00027201,911.22,Holbeach Regeneration Community Interest Company, 
South Holland District Council,http://statistics.data.gov.uk/id/local-authority/32UF,Democratic Services,Other Miscellaneous Expenses,10/07/2014,IJ00029670,1250.00,Holbeach Regeneration Community Interest Company, 
South Holland District Council,http://statistics.data.gov.uk/id/local-authority/32UF,Economic Development,Professional & Contractors Fees,10/07/2014,IJ00030808,1375.00,Lava Marketing Communications Limited, 
South Holland District Council,http://statistics.data.gov.uk/id/local-authority/32UF,Planning,Professional & Contractors Fees,10/07/2014,IJ00030828,1020.00,MatchTech Group Plc, 
South Holland District Council,http://statistics.data.gov.uk/id/local-authority/32UF,Planning,Professional & Contractors Fees,10/07/2014,IJ00030903,1050.00,MatchTech Group Plc, 
South Holland District Council,http://statistics.data.gov.uk/id/local-authority/32UF,Economic Development,Professional & Contractors Fees,10/07/2014,IJ00030809,6488.85,RESOURCE4GROWTH C I C LTD, 
South Holland District Council,http://statistics.data.gov.uk/id/local-authority/32UF,Economic Development,Grants and Contributions to Outside Bodies- No Service Recei,10/07/2014,IJ00030799,15000.00,Willoughby Foods Ltd, 
South Holland District Council,http://statistics.data.gov.uk/id/local-authority/32UF,Economic Development,Grants and Contributions to Outside Bodies- No Service Recei,10/07/2014,IJ00030587,1680.00,Spiegl Press Ltd, 
South Holland District Council,http://statistics.data.gov.uk/id/local-authority/32UF,ICT and Customer Services,Computer Hardware Maintenance,10/07/2014,IJ00030836,3826.03,Kcom, 
South Holland District Council,http://statistics.data.gov.uk/id/local-authority/32UF,Capital,Works to Buildings (main Contractor),10/07/2014,IJ00030807,16873.98,Bell Group UK, 
South Holland District Council,http://statistics.data.gov.uk/id/local-authority/32UF,Democratic Services,Professional & Contractors Fees,10/07/2014,IJ00030821,1811.00,REDACTED PERSONAL INFORMATION,REDACT
South Holland District Council,http://statistics.data.gov.uk/id/local-authority/32UF,Community Development,Premises and Room Hire,10/07/2014,IJ00030854,-790.42,Ministry of Dance,
South Holland District Council,http://statistics.data.gov.uk/id/local-authority/32UF,Community Development,Other Hire Fees,10/07/2014,IJ00030854,-186.66,Ministry of Dance,
South Holland District Council,http://statistics.data.gov.uk/id/local-authority/32UF,Community Development,Payments to Bodies in Respect of Income Collected,10/07/2014,IJ00030854,2612.00,Ministry of Dance,
South Holland District Council,http://statistics.data.gov.uk/id/local-authority/32UF,Community Development,Commission,10/07/2014,IJ00030854,-217.67,Ministry of Dance,
South Holland District Council,http://statistics.data.gov.uk/id/local-authority/32UF,Capital,Purchase of Land,10/07/2014,IJ00030985,7091.00,MOSSOP AND BOWSER CLIENT AC,
South Holland District Council,http://statistics.data.gov.uk/id/local-authority/32UF,Capital,Works to Buildings (main Contractor),16/07/2014,IJ00031157,1700.40,Anglian Water,
South Holland District Council,http://statistics.data.gov.uk/id/local-authority/32UF,Democratic Services,Lincolnshire Legal Services,16/07/2014,IJ00031107,8566.83,Southern Electric,
South Holland District Council,http://statistics.data.gov.uk/id/local-authority/32UF,Democratic Services,Lincolnshire Legal Services,16/07/2014,IJ00031107,1047.00,Southern Electric,
South Holland District Council,http://statistics.data.gov.uk/id/local-authority/32UF,Environmental Services,Water and Sewerage Charges,17/07/2014,IJ00031044,927.11,Anglian Water,
South Holland District Council,http://statistics.data.gov.uk/id/local-authority/32UF,Environmental Services,Professional & Contractors Fees,17/07/2014,IJ00031186,2700.00,A Riddel Skip Hire & Scrap Metal Merchants,
South Holland District Council,http://statistics.data.gov.uk/id/local-authority/32UF,Housing Landlord Manager,Computer Software Licence Costs,17/07/2014,IJ00031133,1863.50,Automico Limited,
South Holland District Council,http://statistics.data.gov.uk/id/local-authority/32UF,Housing Landlord Manager,Grounds Maintenance Contract (External),17/07/2014,IJ00031148,885.00,Barry Disdel,
South Holland District Council,http://statistics.data.gov.uk/id/local-authority/32UF,Environmental Services,Agency Staff,17/07/2014,IJ00031030,299.43,Blue Arrow Ltd,
South Holland District Council,http://statistics.data.gov.uk/id/local-authority/32UF,Environmental Services,Agency Staff,17/07/2014,IJ00031030,1202.77,Blue Arrow Ltd,
South Holland District Council,http://statistics.data.gov.uk/id/local-authority/32UF,Environmental Services,Agency Staff,17/07/2014,IJ00031030,1654.38,Blue Arrow Ltd,
South Holland District Council,http://statistics.data.gov.uk/id/local-authority/32UF,Housing Landlord Manager,Damp Proofing,17/07/2014,IJ00031153,2425.00,British Waterproofing,
South Holland District Council,http://statistics.data.gov.uk/id/local-authority/32UF,Finance,Professional & Contractors Fees,17/07/2014,IJ00031139,1046.50,Capita Business Services Ltd,
South Holland District Council,http://statistics.data.gov.uk/id/local-authority/32UF,Housing Landlord Manager,Buildings Maintenance - Responsive,17/07/2014,IJ00031094,780.00,C.G. Godfrey Ltd,
South Holland District Council,http://statistics.data.gov.uk/id/local-authority/32UF,Housing Landlord Manager,Fuel & Oil,17/07/2014,IJ00031182,268.53,C H Jones Ltd,
South Holland District Council,http://statistics.data.gov.uk/id/local-authority/32UF,Environmental Services,Fuel & Oil,17/07/2014,IJ00031182,6.99,C H Jones Ltd,
South Holland District Council,http://statistics.data.gov.uk/id/local-authority/32UF,Environmental Services,Fuel & Oil,17/07/2014,IJ00031182,249.01,C H Jones Ltd,
South Holland District Council,http://statistics.data.gov.uk/id/local-authority/32UF,Environmental Services,Fuel & Oil,17/07/2014,IJ00031182,2147.72,C H Jones Ltd,
South Holland District Council,http://statistics.data.gov.uk/id/local-authority/32UF,Environmental Services,Fuel & Oil,17/07/2014,IJ00031182,553.68,C H Jones Ltd,
South Holland District Council,http://statistics.data.gov.uk/id/local-authority/32UF,Environmental Services,Fuel & Oil,17/07/2014,IJ00031182,2781.25,C H Jones Ltd,
South Holland District Council,http://statistics.data.gov.uk/id/local-authority/32UF,Housing Landlord Manager,Fuel & Oil,17/07/2014,IJ00031182,332.68,C H Jones Ltd,
South Holland District Council,http://statistics.data.gov.uk/id/local-authority/32UF,Housing Landlord Manager,Fuel & Oil,17/07/2014,IJ00031182,75.48,C H Jones Ltd,
South Holland District Council,http://statistics.data.gov.uk/id/local-authority/32UF,Environmental Services,Fuel & Oil,17/07/2014,IJ00031182,24.41,C H Jones Ltd,
South Holland District Council,http://statistics.data.gov.uk/id/local-authority/32UF,Environmental Services,Fuel & Oil,17/07/2014,IJ00031182,6.99,C H Jones Ltd,
South Holland District Council,http://statistics.data.gov.uk/id/local-authority/32UF,Environmental Health,Fuel & Oil,17/07/2014,IJ00031182,37.21,C H Jones Ltd,
South Holland District Council,http://statistics.data.gov.uk/id/local-authority/32UF,Environmental Services,Electricity,17/07/2014,IJ00031025,656.23,E.On,
South Holland District Council,http://statistics.data.gov.uk/id/local-authority/32UF,Environmental Services,Electricity,17/07/2014,IJ00031025,328.14,E.On,
South Holland District Council,http://statistics.data.gov.uk/id/local-authority/32UF,Environmental Services,Electricity,17/07/2014,IJ00031025,656.24,E.On,
South Holland District Council,http://statistics.data.gov.uk/id/local-authority/32UF,Community Development,Gas,17/07/2014,IJ00031068,531.41,Espo Gas And Electricity,
South Holland District Council,http://statistics.data.gov.uk/id/local-authority/32UF,Revs and Bens,Court Costs,17/07/2014,IJ00031176,1113.00,H M C S,
South Holland District Council,http://statistics.data.gov.uk/id/local-authority/32UF,Revs and Bens,Court Costs,17/07/2014,IJ00031176,81.00,H M C S,
South Holland District Council,http://statistics.data.gov.uk/id/local-authority/32UF,Housing Landlord Manager,Materials and Consumables,17/07/2014,IJ00031187,1024.58,Jackson Buildbase,
South Holland District Council,http://statistics.data.gov.uk/id/local-authority/32UF,Housing Landlord Manager,Materials and Consumables,17/07/2014,IJ00031187,3206.17,Jackson Buildbase,
South Holland District Council,http://statistics.data.gov.uk/id/local-authority/32UF,Housing Landlord Manager,Materials and Consumables,17/07/2014,IJ00031187,206.11,Jackson Buildbase,
South Holland District Council,http://statistics.data.gov.uk/id/local-authority/32UF,Housing Landlord Manager,Materials and Consumables,17/07/2014,IJ00031185,335.67,Jackson Buildbase,
South Holland District Council,http://statistics.data.gov.uk/id/local-authority/32UF,Housing Landlord Manager,Materials and Consumables,17/07/2014,IJ00031185,211.28,Jackson Buildbase,
South Holland District Council,http://statistics.data.gov.uk/id/local-authority/32UF,Housing Landlord Manager,Materials and Consumables,17/07/2014,IJ00031185,86.94,Jackson Buildbase,
South Holland District Council,http://statistics.data.gov.uk/id/local-authority/32UF,Housing Landlord Manager,Agency Staff,17/07/2014,IJ00031080,848.78,James Andrews Recruitment Solutions,
South Holland District Council,http://statistics.data.gov.uk/id/local-authority/32UF,Housing Landlord Manager,Buildings Maintenance - Responsive,17/07/2014,IJ00031131,798.00,K L Morbey Fencing,
South Holland District Council,http://statistics.data.gov.uk/id/local-authority/32UF,Community Development,Leisure Management,17/07/2014,IJ00031005,528.37,Leisure Connection Ltd,
South Holland District Council,http://statistics.data.gov.uk/id/local-authority/32UF,Community Development,Leisure Management,17/07/2014,IJ00031005,528.38,Leisure Connection Ltd,
South Holland District Council,http://statistics.data.gov.uk/id/local-authority/32UF,Community Development,Leisure Management,17/07/2014,IJ00031006,5458.54,Leisure Connection Ltd,
South Holland District Council,http://statistics.data.gov.uk/id/local-authority/32UF,Community Development,Leisure Management,17/07/2014,IJ00031006,5458.54,Leisure Connection Ltd,
South Holland District Council,http://statistics.data.gov.uk/id/local-authority/32UF,Housing Landlord Manager,Buildings Maintenance - Responsive,17/07/2014,IJ00031174,1597.80,L Fragale,
South Holland District Council,http://statistics.data.gov.uk/id/local-authority/32UF,Democratic Services,Lincolnshire Legal Services,17/07/2014,IJ00031152,8566.83,Lincolnshire County Council,
South Holland District Council,http://statistics.data.gov.uk/id/local-authority/32UF,Democratic Services,Lincolnshire Legal Services,17/07/2014,IJ00031152,1047.00,Lincolnshire County Council,
South Holland District Council,http://statistics.data.gov.uk/id/local-authority/32UF,Planning,Professional & Contractors Fees,17/07/2014,IJ00031095,3360.00,Lincolnshire County Council,
South Holland District Council,http://statistics.data.gov.uk/id/local-authority/32UF,Building Control,Buildings Maintenance - Programmed,17/07/2014,IJ00031065,848.60,Main Street Signs Ltd,
South Holland District Council,http://statistics.data.gov.uk/id/local-authority/32UF,Building Control,Buildings Maintenance - Programmed,17/07/2014,IJ00031114,864.00,Main Street Signs Ltd,
South Holland District Council,http://statistics.data.gov.uk/id/local-authority/32UF,Community Development,Premises and Room Hire,17/07/2014,IJ00031102,-1165.00,Polka Dot Academy,
South Holland District Council,http://statistics.data.gov.uk/id/local-authority/32UF,Community Development,Other Hire Fees,17/07/2014,IJ00031102,-1064.17,Polka Dot Academy,
South Holland District Council,http://statistics.data.gov.uk/id/local-authority/32UF,Community Development,Payments to Bodies in Respect of Income Collected,17/07/2014,IJ00031102,6428.00,Polka Dot Academy,
South Holland District Council,http://statistics.data.gov.uk/id/local-authority/32UF,Community Development,Commission,17/07/2014,IJ00031102,-642.80,Polka Dot Academy,
South Holland District Council,http://statistics.data.gov.uk/id/local-authority/32UF,Community Development,Grants and Contributions to Outside Bodies- No Service Recei,17/07/2014,IJ00031183,14865.00,S.Holland Citizens Advice Bureau,
South Holland District Council,http://statistics.data.gov.uk/id/local-authority/32UF,Asset and Property,Electricity,17/07/2014,IJ00030997,2025.92,Southern Electric,
South Holland District Council,http://statistics.data.gov.uk/id/local-authority/32UF,Housing Landlord Manager,Electricity,17/07/2014,IJ00031034,565.08,Southern Electric,
South Holland District Council,http://statistics.data.gov.uk/id/local-authority/32UF,Housing Landlord Manager,Electricity,17/07/2014,IJ00031108,93.16,Southern Electric,
South Holland District Council,http://statistics.data.gov.uk/id/local-authority/32UF,Housing Landlord Manager,Electricity,17/07/2014,IJ00031108,81.18,Southern Electric,
South Holland District Council,http://statistics.data.gov.uk/id/local-authority/32UF,Housing Landlord Manager,Electricity,17/07/2014,IJ00031108,63.76,Southern Electric,
South Holland District Council,http://statistics.data.gov.uk/id/local-authority/32UF,Housing Landlord Manager,Electricity,17/07/2014,IJ00031108,385.15,Southern Electric,
South Holland District Council,http://statistics.data.gov.uk/id/local-authority/32UF,Housing Landlord Manager,Electricity,17/07/2014,IJ00031108,95.63,Southern Electric,
South Holland District Council,http://statistics.data.gov.uk/id/local-authority/32UF,Housing Landlord Manager,Electricity,17/07/2014,IJ00031108,182.13,Southern Electric,
South Holland District Council,http://statistics.data.gov.uk/id/local-authority/32UF,Housing Landlord Manager,Electricity,17/07/2014,IJ00031108,182.75,Southern Electric,
South Holland District Council,http://statistics.data.gov.uk/id/local-authority/32UF,Housing Landlord Manager,Electricity,17/07/2014,IJ00031108,75.41,Southern Electric,
South Holland District Council,http://statistics.data.gov.uk/id/local-authority/32UF,Housing Landlord Manager,Electricity,17/07/2014,IJ00031108,24.87,Southern Electric,
South Holland District Council,http://statistics.data.gov.uk/id/local-authority/32UF,Housing Landlord Manager,Electricity,17/07/2014,IJ00031108,103.97,Southern Electric,
South Holland District Council,http://statistics.data.gov.uk/id/local-authority/32UF,Asset and Property,Electricity,17/07/2014,IJ00031108,46.91,Southern Electric,
South Holland District Council,http://statistics.data.gov.uk/id/local-authority/32UF,Asset and Property,Electricity,17/07/2014,IJ00031108,190.72,Southern Electric,
South Holland District Council,http://statistics.data.gov.uk/id/local-authority/32UF,Asset and Property,Electricity,17/07/2014,IJ00031108,206.77,Southern Electric,
South Holland District Council,http://statistics.data.gov.uk/id/local-authority/32UF,Asset and Property,Electricity,17/07/2014,IJ00031108,168.62,Southern Electric,
South Holland District Council,http://statistics.data.gov.uk/id/local-authority/32UF,Environmental Services,Electricity,17/07/2014,IJ00031108,997.53,Southern Electric,
South Holland District Council,http://statistics.data.gov.uk/id/local-authority/32UF,Housing Landlord Manager,Electricity,17/07/2014,IJ00031108,84.28,Southern Electric,
South Holland District Council,http://statistics.data.gov.uk/id/local-authority/32UF,Housing Landlord Manager,Electricity,17/07/2014,IJ00031108,166.35,Southern Electric,
South Holland District Council,http://statistics.data.gov.uk/id/local-authority/32UF,Housing Landlord Manager,Electricity,17/07/2014,IJ00031108,319.47,Southern Electric,
South Holland District Council,http://statistics.data.gov.uk/id/local-authority/32UF,Housing Landlord Manager,Electricity,17/07/2014,IJ00031108,161.81,Southern Electric,
South Holland District Council,http://statistics.data.gov.uk/id/local-authority/32UF,Housing Landlord Manager,Electricity,17/07/2014,IJ00031108,238.84,Southern Electric,
South Holland District Council,http://statistics.data.gov.uk/id/local-authority/32UF,Housing Landlord Manager,Electricity,17/07/2014,IJ00031108,372.16,Southern Electric,
South Holland District Council,http://statistics.data.gov.uk/id/local-authority/32UF,Environmental Services,Electricity,17/07/2014,IJ00031108,30.18,Southern Electric,
South Holland District Council,http://statistics.data.gov.uk/id/local-authority/32UF,Asset and Property,Buildings Maintenance - Responsive,17/07/2014,IJ00031016,1600.00,South Holland Maintenance Ltd,
South Holland District Council,http://statistics.data.gov.uk/id/local-authority/32UF,Housing Landlord Manager,Void Repairs,17/07/2014,IJ00031098,3680.00,South Holland Maintenance Ltd,
South Holland District Council,http://statistics.data.gov.uk/id/local-authority/32UF,Housing Landlord Manager,Void Repairs,17/07/2014,IJ00031099,4125.00,South Holland Maintenance Ltd,
South Holland District Council,http://statistics.data.gov.uk/id/local-authority/32UF,Capital,Works to Buildings (main Contractor),17/07/2014,IJ00031113,2470.00,Stuart Taplin,
South Holland District Council,http://statistics.data.gov.uk/id/local-authority/32UF,Housing,Grants and Contributions to Outside Bodies- No Service Recei,17/07/2014,IJ00031116,1803.00,Stuart Taplin,
South Holland District Council,http://statistics.data.gov.uk/id/local-authority/32UF,Environmental Services,Agency Staff,17/07/2014,IJ00031027,465.66,The Best Connection Group Ltd,
South Holland District Council,http://statistics.data.gov.uk/id/local-authority/32UF,Environmental Services,Agency Staff,17/07/2014,IJ00031027,498.20,The Best Connection Group Ltd,
South Holland District Council,http://statistics.data.gov.uk/id/local-authority/32UF,Environmental Services,Agency Staff,17/07/2014,IJ00031027,264.74,The Best Connection Group Ltd,
South Holland District Council,http://statistics.data.gov.uk/id/local-authority/32UF,Housing Landlord Manager,Void Repairs,17/07/2014,IJ00031077,630.00,Spotless Cleaning,
South Holland District Council,http://statistics.data.gov.uk/id/local-authority/32UF,Finance,Government Housing Capital Receipt Pool,17/07/2014,IJ00031117,68163.62,Government Banking Services,
South Holland District Council,http://statistics.data.gov.uk/id/local-authority/32UF,Environmental Services,Commercial Vehicle Lease,17/07/2014,IJ00031138,710.65,NORTHRIDGE FINANCE LTD,
South Holland District Council,http://statistics.data.gov.uk/id/local-authority/32UF,Housing Landlord Manager,Furniture and Equipment,17/07/2014,IJ00031136,281.34,VEOLIA ES UK LTD,
South Holland District Council,http://statistics.data.gov.uk/id/local-authority/32UF,Housing Landlord Manager,Furniture and Equipment,17/07/2014,IJ00031136,281.34,VEOLIA ES UK LTD,
South Holland District Council,http://statistics.data.gov.uk/id/local-authority/32UF,Housing Landlord Manager,Furniture and Equipment,17/07/2014,IJ00031142,310.74,VEOLIA ES UK LTD,
South Holland District Council,http://statistics.data.gov.uk/id/local-authority/32UF,Housing Landlord Manager,Furniture and Equipment,17/07/2014,IJ00031142,310.74,VEOLIA ES UK LTD,
South Holland District Council,http://statistics.data.gov.uk/id/local-authority/32UF,Housing,Grants and Contributions to Outside Bodies- No Service Recei,17/07/2014,IJ00031115,7000.00,MPL HOME IMPROVEMENTS SERVICES LINCS LTD,
South Holland District Council,http://statistics.data.gov.uk/id/local-authority/32UF,Community Development,Grants and Contributions- Where a Service is Received,17/07/2014,IJ00031194,4050.00,Cook Connect Ltd,
South Holland District Council,http://statistics.data.gov.uk/id/local-authority/32UF,Housing Landlord Manager,Buildings Maintenance - Responsive,17/07/2014,IJ00031134,680.00,Wrights Flooring and Carpets Ltd,
South Holland District Council,http://statistics.data.gov.uk/id/local-authority/32UF,Capital,Works to Buildings (main Contractor),17/07/2014,IJ00031154,4666.00,MCP Environmental,
South Holland District Council,http://statistics.data.gov.uk/id/local-authority/32UF,Capital,Works to Buildings (main Contractor),17/07/2014,IJ00031156,2560.00,MCP Environmental,
South Holland District Council,http://statistics.data.gov.uk/id/local-authority/32UF,Housing Landlord Manager,Void Repairs,17/07/2014,IJ00031190,3817.75,Response Construction Maintenance Limited,
South Holland District Council,http://statistics.data.gov.uk/id/local-authority/32UF,Housing Landlord Manager,Void Repairs,17/07/2014,IJ00031192,1519.07,Response Construction Maintenance Limited,
South Holland District Council,http://statistics.data.gov.uk/id/local-authority/32UF,Housing Landlord Manager,Professional & Contractors Fees,17/07/2014,IJ00031155,7225.00,DMW Environmental Safety Ltd,
South Holland District Council,http://statistics.data.gov.uk/id/local-authority/32UF,Housing,Grants and Contributions to Outside Bodies- No Service Recei,17/07/2014,IJ00031103,1450.00,REDACTED PERSONAL INFORMATION,REDACT
South Holland District Council,http://statistics.data.gov.uk/id/local-authority/32UF,Environmental Services,Agency Staff,24/07/2014,IJ00031310,391.50,247 Personnel Ltd, 
South Holland District Council,http://statistics.data.gov.uk/id/local-authority/32UF,Environmental Services,Agency Staff,24/07/2014,IJ00031310,207.00,247 Personnel Ltd, 
South Holland District Council,http://statistics.data.gov.uk/id/local-authority/32UF,Environmental Services,Agency Staff,24/07/2014,IJ00031310,67.50,247 Personnel Ltd, 
South Holland District Council,http://statistics.data.gov.uk/id/local-authority/32UF,Environmental Services,Agency Staff,24/07/2014,IJ00031323,265.50,247 Personnel Ltd, 
South Holland District Council,http://statistics.data.gov.uk/id/local-authority/32UF,Environmental Services,Agency Staff,24/07/2014,IJ00031323,400.50,247 Personnel Ltd, 
South Holland District Council,http://statistics.data.gov.uk/id/local-authority/32UF,Environmental Services,Agency Staff,24/07/2014,IJ00031323,261.00,247 Personnel Ltd, 
South Holland District Council,http://statistics.data.gov.uk/id/local-authority/32UF,Asset and Property,Buildings Maintenance - Responsive,24/07/2014,IJ00031247,537.01,Adt Fire And Security Plc, 
South Holland District Council,http://statistics.data.gov.uk/id/local-authority/32UF,Environmental Services,Agency Staff,24/07/2014,IJ00031216,233.45,Blue Arrow Ltd, 
South Holland District Council,http://statistics.data.gov.uk/id/local-authority/32UF,Environmental Services,Agency Staff,24/07/2014,IJ00031216,888.13,Blue Arrow Ltd, 
South Holland District Council,http://statistics.data.gov.uk/id/local-authority/32UF,Environmental Services,Agency Staff,24/07/2014,IJ00031216,1349.95,Blue Arrow Ltd, 
South Holland District Council,http://statistics.data.gov.uk/id/local-authority/32UF,Environmental Services,Agency Staff,24/07/2014,IJ00031216,223.30,Blue Arrow Ltd, 
South Holland District Council,http://statistics.data.gov.uk/id/local-authority/32UF,Environmental Services,Agency Staff,24/07/2014,IJ00031216,193.48,Blue Arrow Ltd, 
South Holland District Council,http://statistics.data.gov.uk/id/local-authority/32UF,Environmental Services,Materials and Consumables,24/07/2014,IJ00031302,694.44,Bpi Recycled Products, 
South Holland District Council,http://statistics.data.gov.uk/id/local-authority/32UF,Environmental Services,Materials and Consumables,24/07/2014,IJ00031346,7080.07,Bpi Recycled Products, 
South Holland District Council,http://statistics.data.gov.uk/id/local-authority/32UF,Environmental Services,Materials and Consumables,24/07/2014,IJ00031347,3229.92,Bpi Recycled Products, 
South Holland District Council,http://statistics.data.gov.uk/id/local-authority/32UF,Environmental Services,Materials and Consumables,24/07/2014,IJ00031348,11082.36,Bpi Recycled Products, 
South Holland District Council,http://statistics.data.gov.uk/id/local-authority/32UF,Balance Sheet,Payroll-Attachment Of Earnings,24/07/2014,IJ00031357,508.50,Child Support Agency, 
South Holland District Council,http://statistics.data.gov.uk/id/local-authority/32UF,Housing Landlord Manager,Fuel & Oil,24/07/2014,IJ00031361,562.81,C H Jones Ltd, 
South Holland District Council,http://statistics.data.gov.uk/id/local-authority/32UF,Environmental Services,Fuel & Oil,24/07/2014,IJ00031361,8.34,C H Jones Ltd, 
South Holland District Council,http://statistics.data.gov.uk/id/local-authority/32UF,Environmental Services,Fuel & Oil,24/07/2014,IJ00031361,445.78,C H Jones Ltd, 
South Holland District Council,http://statistics.data.gov.uk/id/local-authority/32UF,Environmental Services,Fuel & Oil,24/07/2014,IJ00031361,2173.74,C H Jones Ltd, 
South Holland District Council,http://statistics.data.gov.uk/id/local-authority/32UF,Environmental Services,Fuel & Oil,24/07/2014,IJ00031361,617.88,C H Jones Ltd, 
South Holland District Council,http://statistics.data.gov.uk/id/local-authority/32UF,Environmental Services,Fuel & Oil,24/07/2014,IJ00031361,2827.78,C H Jones Ltd, 
South Holland District Council,http://statistics.data.gov.uk/id/local-authority/32UF,Housing Landlord Manager,Fuel & Oil,24/07/2014,IJ00031361,189.16,C H Jones Ltd, 
South Holland District Council,http://statistics.data.gov.uk/id/local-authority/32UF,Housing Landlord Manager,Fuel & Oil,24/07/2014,IJ00031361,143.22,C H Jones Ltd, 
South Holland District Council,http://statistics.data.gov.uk/id/local-authority/32UF,Environmental Services,Fuel & Oil,24/07/2014,IJ00031361,8.34,C H Jones Ltd, 
South Holland District Council,http://statistics.data.gov.uk/id/local-authority/32UF,Environmental Services,Fuel & Oil,24/07/2014,IJ00031361,8.34,C H Jones Ltd, 
South Holland District Council,http://statistics.data.gov.uk/id/local-authority/32UF,Environmental Health,Fuel & Oil,24/07/2014,IJ00031361,34.55,C H Jones Ltd, 
South Holland District Council,http://statistics.data.gov.uk/id/local-authority/32UF,Environmental Services,Fuel & Oil,24/07/2014,IJ00031361,55.18,C H Jones Ltd, 
South Holland District Council,http://statistics.data.gov.uk/id/local-authority/32UF,Community Development,External Printing and Design Costs,24/07/2014,IJ00031295,1271.00,Classic Printers, 
South Holland District Council,http://statistics.data.gov.uk/id/local-authority/32UF,Community Development,Buildings Maintenance - Responsive,24/07/2014,IJ00031207,754.50,Commercial Cladding Services Ltd, 
South Holland District Council,http://statistics.data.gov.uk/id/local-authority/32UF,Environmental Services,Road Tax,24/07/2014,IJ00031317,360.00,C P Davidson & Sons Ltd, 
South Holland District Council,http://statistics.data.gov.uk/id/local-authority/32UF,Environmental Services,Road Tax,24/07/2014,IJ00031317,483.75,C P Davidson & Sons Ltd, 
South Holland District Council,http://statistics.data.gov.uk/id/local-authority/32UF,Collection Fund,Central Share of NDR Income - Government,24/07/2014,IJ00031315,1322851.00,Department For Communities & Local Government, 
South Holland District Council,http://statistics.data.gov.uk/id/local-authority/32UF,Collection Fund,Transitional Protection Payments,24/07/2014,IJ00031315,-43762.00,Department For Communities & Local Government, 
South Holland District Council,http://statistics.data.gov.uk/id/local-authority/32UF,Finance,Business Rates Tariff,24/07/2014,IJ00031315,689770.00,Department For Communities & Local Government, 
South Holland District Council,http://statistics.data.gov.uk/id/local-authority/32UF,Collection Fund,Contribution to Deficit (NDR),24/07/2014,IJ00031315,-12505.00,Department For Communities & Local Government, 
South Holland District Council,http://statistics.data.gov.uk/id/local-authority/32UF,Housing Landlord Manager,Gas,24/07/2014,IJ00031199,521.92,Espo Gas And Electricity, 
South Holland District Council,http://statistics.data.gov.uk/id/local-authority/32UF,HR,Other Employee Expenses,24/07/2014,IJ00031358,75.86,Fideliti Limited, 
South Holland District Council,http://statistics.data.gov.uk/id/local-authority/32UF,Balance Sheet,Payroll SHDC Child Care,24/07/2014,IJ00031358,1896.50,Fideliti Limited, 
South Holland District Council,http://statistics.data.gov.uk/id/local-authority/32UF,Environmental Services,Buildings Maintenance - Responsive,24/07/2014,IJ00031252,521.30,Glen Farrow UK Ltd, 
South Holland District Council,http://statistics.data.gov.uk/id/local-authority/32UF,Community Development,Other Communication Costs,24/07/2014,IJ00031200,1881.00,G T S Security, 
South Holland District Council,http://statistics.data.gov.uk/id/local-authority/32UF,Community Development,Other Communication Costs,24/07/2014,IJ00031201,700.14,G T S Security, 
South Holland District Council,http://statistics.data.gov.uk/id/local-authority/32UF,Environmental Services,Agency Staff,24/07/2014,IJ00031288,299.51,Integrity Plus Ltd, 
South Holland District Council,http://statistics.data.gov.uk/id/local-authority/32UF,Environmental Services,Agency Staff,24/07/2014,IJ00031288,63.83,Integrity Plus Ltd, 
South Holland District Council,http://statistics.data.gov.uk/id/local-authority/32UF,Environmental Services,Agency Staff,24/07/2014,IJ00031288,363.34,Integrity Plus Ltd, 
South Holland District Council,http://statistics.data.gov.uk/id/local-authority/32UF,Housing Landlord Manager,Materials and Consumables,24/07/2014,IJ00031332,980.71,Jackson Buildbase, 
South Holland District Council,http://statistics.data.gov.uk/id/local-authority/32UF,Housing Landlord Manager,Materials and Consumables,24/07/2014,IJ00031332,1229.47,Jackson Buildbase, 
South Holland District Council,http://statistics.data.gov.uk/id/local-authority/32UF,Housing Landlord Manager,Materials and Consumables,24/07/2014,IJ00031332,1809.74,Jackson Buildbase, 
South Holland District Council,http://statistics.data.gov.uk/id/local-authority/32UF,Housing Landlord Manager,Buildings Maintenance - Responsive,24/07/2014,IJ00031305,1260.00,K L Morbey Fencing, 
South Holland District Council,http://statistics.data.gov.uk/id/local-authority/32UF,Capital,Works to Buildings (main Contractor),24/07/2014,IJ00031214,38175.31,Langwith Construction, 
South Holland District Council,http://statistics.data.gov.uk/id/local-authority/32UF,Planning,Professional & Contractors Fees,24/07/2014,IJ00031246,3964.00,Lincolnshire County Council, 
South Holland District Council,http://statistics.data.gov.uk/id/local-authority/32UF,Planning,Legal Fees,24/07/2014,IJ00031244,2822.02,REDACTED PERSONAL INFORMATION,REDACT
South Holland District Council,http://statistics.data.gov.uk/id/local-authority/32UF,Community Development,Grants and Contributions- Where a Service is Received,24/07/2014,IJ00031204,1500.00,North Kesteven District Council, 
South Holland District Council,http://statistics.data.gov.uk/id/local-authority/32UF,Asset and Property,Electricity,24/07/2014,IJ00031255,3830.85,Southern Electric, 
South Holland District Council,http://statistics.data.gov.uk/id/local-authority/32UF,Housing Landlord Manager,Buildings Maintenance - Responsive,24/07/2014,IJ00031269,1650.00,South Holland Maintenance Ltd, 
South Holland District Council,http://statistics.data.gov.uk/id/local-authority/32UF,Housing Landlord Manager,Buildings Maintenance - Responsive,24/07/2014,IJ00031271,850.00,South Holland Maintenance Ltd, 
South Holland District Council,http://statistics.data.gov.uk/id/local-authority/32UF,Community Development,Buildings Maintenance - Responsive,24/07/2014,IJ00031319,700.00,Spalding Air Conditioning Services Ltd, 
South Holland District Council,http://statistics.data.gov.uk/id/local-authority/32UF,Community Development,Premises and Room Hire,24/07/2014,IJ00031345,-1961.87,Spalding School Of Dance, 
South Holland District Council,http://statistics.data.gov.uk/id/local-authority/32UF,Community Development,Other Hire Fees,24/07/2014,IJ00031345,-1134.17,Spalding School Of Dance, 
South Holland District Council,http://statistics.data.gov.uk/id/local-authority/32UF,Community Development,Payments to Bodies in Respect of Income Collected,24/07/2014,IJ00031345,12078.00,Spalding School Of Dance, 
South Holland District Council,http://statistics.data.gov.uk/id/local-authority/32UF,Community Development,Commission,24/07/2014,IJ00031345,-1207.80,Spalding School Of Dance, 
South Holland District Council,http://statistics.data.gov.uk/id/local-authority/32UF,Environmental Services,Furniture and Equipment,24/07/2014,IJ00031320,841.16,Spaldings (Uk) Ltd, 
South Holland District Council,http://statistics.data.gov.uk/id/local-authority/32UF,Environmental Services,Agency Staff,24/07/2014,IJ00031322,441.78,The Best Connection Group Ltd, 
South Holland District Council,http://statistics.data.gov.uk/id/local-authority/32UF,Environmental Services,Agency Staff,24/07/2014,IJ00031322,441.78,The Best Connection Group Ltd, 
South Holland District Council,http://statistics.data.gov.uk/id/local-authority/32UF,Community Development,Advertising - Events,24/07/2014,IJ00031256,600.00,Tulip Radio Ltd, 
South Holland District Council,http://statistics.data.gov.uk/id/local-authority/32UF,Finance,Fees and Charges General,24/07/2014,IJ00031351,-30.12,UNISON, 
South Holland District Council,http://statistics.data.gov.uk/id/local-authority/32UF,Balance Sheet,Payroll-Unison,24/07/2014,IJ00031351,1204.65,UNISON, 
South Holland District Council,http://statistics.data.gov.uk/id/local-authority/32UF,Environmental Services,Tyres,24/07/2014,IJ00031360,1597.90,Vaculug Traction Tyres Ltd, 
South Holland District Council,http://statistics.data.gov.uk/id/local-authority/32UF,Environmental Services,Tyres,24/07/2014,IJ00031360,2124.99,Vaculug Traction Tyres Ltd, 
South Holland District Council,http://statistics.data.gov.uk/id/local-authority/32UF,Environmental Services,Tyres,24/07/2014,IJ00031360,168.17,Vaculug Traction Tyres Ltd, 
South Holland District Council,http://statistics.data.gov.uk/id/local-authority/32UF,Environmental Services,Tyres,24/07/2014,IJ00031360,137.58,Vaculug Traction Tyres Ltd, 
South Holland District Council,http://statistics.data.gov.uk/id/local-authority/32UF,Community Development,Film and Entertainment Costs,24/07/2014,IJ00031292,527.89,Warner Bros Distributors Ltd, 
South Holland District Council,http://statistics.data.gov.uk/id/local-authority/32UF,Housing Landlord Manager,Void Repairs,24/07/2014,IJ00031260,830.00,Spotless Cleaning, 
South Holland District Council,http://statistics.data.gov.uk/id/local-authority/32UF,Democratic Services,Other Miscellaneous Expenses,24/07/2014,IJ00031299,900.00,PINCHBECK CARNIVAL ASSOCIATION, 
South Holland District Council,http://statistics.data.gov.uk/id/local-authority/32UF,Planning,Telephones,24/07/2014,IJ00031217,5.50,DAISY COMMUNICATIONS LTD, 
South Holland District Council,http://statistics.data.gov.uk/id/local-authority/32UF,Housing Landlord Manager,Telephones,24/07/2014,IJ00031217,906.06,DAISY COMMUNICATIONS LTD, 
South Holland District Council,http://statistics.data.gov.uk/id/local-authority/32UF,Finance,Telephones,24/07/2014,IJ00031217,879.68,DAISY COMMUNICATIONS LTD, 
South Holland District Council,http://statistics.data.gov.uk/id/local-authority/32UF,Environmental Health,Telephones,24/07/2014,IJ00031217,10.99,DAISY COMMUNICATIONS LTD, 
South Holland District Council,http://statistics.data.gov.uk/id/local-authority/32UF,Asset and Property,Telephones,24/07/2014,IJ00031217,21.98,DAISY COMMUNICATIONS LTD, 
South Holland District Council,http://statistics.data.gov.uk/id/local-authority/32UF,Building Control,Telephones,24/07/2014,IJ00031217,5.49,DAISY COMMUNICATIONS LTD, 
South Holland District Council,http://statistics.data.gov.uk/id/local-authority/32UF,Environmental Services,Telephones,24/07/2014,IJ00031217,10.99,DAISY COMMUNICATIONS LTD, 
South Holland District Council,http://statistics.data.gov.uk/id/local-authority/32UF,Housing Landlord Manager,Telephones,24/07/2014,IJ00031217,11.24,DAISY COMMUNICATIONS LTD, 
South Holland District Council,http://statistics.data.gov.uk/id/local-authority/32UF,Environmental Services,Telephones,24/07/2014,IJ00031217,15.30,DAISY COMMUNICATIONS LTD, 
South Holland District Council,http://statistics.data.gov.uk/id/local-authority/32UF,Environmental Services,Telephones,24/07/2014,IJ00031217,11.22,DAISY COMMUNICATIONS LTD, 
South Holland District Council,http://statistics.data.gov.uk/id/local-authority/32UF,Environmental Health,Telephones,24/07/2014,IJ00031217,10.99,DAISY COMMUNICATIONS LTD, 
South Holland District Council,http://statistics.data.gov.uk/id/local-authority/32UF,Democratic Services,Telephones,24/07/2014,IJ00031217,10.99,DAISY COMMUNICATIONS LTD, 
South Holland District Council,http://statistics.data.gov.uk/id/local-authority/32UF,Housing Landlord Manager,Telephones,24/07/2014,IJ00031217,11.12,DAISY COMMUNICATIONS LTD, 
South Holland District Council,http://statistics.data.gov.uk/id/local-authority/32UF,Asset and Property,Telephones,24/07/2014,IJ00031217,10.99,DAISY COMMUNICATIONS LTD, 
South Holland District Council,http://statistics.data.gov.uk/id/local-authority/32UF,Housing Landlord Manager,Telephones,24/07/2014,IJ00031217,18.21,DAISY COMMUNICATIONS LTD, 
South Holland District Council,http://statistics.data.gov.uk/id/local-authority/32UF,Finance,Telephones,24/07/2014,IJ00031217,10.99,DAISY COMMUNICATIONS LTD, 
South Holland District Council,http://statistics.data.gov.uk/id/local-authority/32UF,Finance,Telephones,24/07/2014,IJ00031217,143.55,DAISY COMMUNICATIONS LTD, 
South Holland District Council,http://statistics.data.gov.uk/id/local-authority/32UF,Finance,Telephones,24/07/2014,IJ00031217,21.98,DAISY COMMUNICATIONS LTD, 
South Holland District Council,http://statistics.data.gov.uk/id/local-authority/32UF,Finance,Telephones,24/07/2014,IJ00031217,10.99,DAISY COMMUNICATIONS LTD, 
South Holland District Council,http://statistics.data.gov.uk/id/local-authority/32UF,Community Development,Telephones,24/07/2014,IJ00031217,10.99,DAISY COMMUNICATIONS LTD, 
South Holland District Council,http://statistics.data.gov.uk/id/local-authority/32UF,Community Development,Telephones,24/07/2014,IJ00031217,44.25,DAISY COMMUNICATIONS LTD, 
South Holland District Council,http://statistics.data.gov.uk/id/local-authority/32UF,Community Development,Telephones,24/07/2014,IJ00031217,22.19,DAISY COMMUNICATIONS LTD, 
South Holland District Council,http://statistics.data.gov.uk/id/local-authority/32UF,Housing Landlord Manager,Materials and Consumables,24/07/2014,IJ00031275,509.80,M E DUFFELLS LTD, 
South Holland District Council,http://statistics.data.gov.uk/id/local-authority/32UF,Environmental Services,Other Communication Costs,24/07/2014,IJ00031220,3000.00,F Tempest & Sons Stickney Ltd, 
South Holland District Council,http://statistics.data.gov.uk/id/local-authority/32UF,Housing,Grants and Contributions to Outside Bodies- No Service Recei,24/07/2014,IJ00031209,2635.00,MPL HOME IMPROVEMENTS SERVICES LINCS LTD, 
South Holland District Council,http://statistics.data.gov.uk/id/local-authority/32UF,Community Development,Other Miscellaneous Expenses,24/07/2014,IJ00031326,1350.00,Cook Connect Ltd, 
South Holland District Council,http://statistics.data.gov.uk/id/local-authority/32UF,Housing Landlord Manager,Void Repairs,24/07/2014,IJ00031263,4040.99,M Yould Plumbing and Heating Ltd, 
South Holland District Council,http://statistics.data.gov.uk/id/local-authority/32UF,Housing Landlord Manager,Void Repairs,24/07/2014,IJ00031264,3484.94,M Yould Plumbing and Heating Ltd, 
South Holland District Council,http://statistics.data.gov.uk/id/local-authority/32UF,Housing Landlord Manager,Void Repairs,24/07/2014,IJ00031266,3160.00,M Yould Plumbing and Heating Ltd, 
South Holland District Council,http://statistics.data.gov.uk/id/local-authority/32UF,Housing Landlord Manager,Void Repairs,24/07/2014,IJ00031268,2159.75,M Yould Plumbing and Heating Ltd, 
South Holland District Council,http://statistics.data.gov.uk/id/local-authority/32UF,Housing Landlord Manager,Void Repairs,24/07/2014,IJ00031270,4950.00,M Yould Plumbing and Heating Ltd, 
South Holland District Council,http://statistics.data.gov.uk/id/local-authority/32UF,Housing Landlord Manager,Void Repairs,24/07/2014,IJ00031273,1400.00,M Yould Plumbing and Heating Ltd, 
South Holland District Council,http://statistics.data.gov.uk/id/local-authority/32UF,Environmental Services,Other Communication Costs,24/07/2014,IJ00031321,2250.00,Bartec Auto ID Ltd, 
South Holland District Council,http://statistics.data.gov.uk/id/local-authority/32UF,Community Development,Payments to Bodies in Respect of Income Collected,24/07/2014,IJ00031318,1533.00,Bakkavor, 
South Holland District Council,http://statistics.data.gov.uk/id/local-authority/32UF,Community Development,Commission,24/07/2014,IJ00031318,-127.75,Bakkavor, 
South Holland District Council,http://statistics.data.gov.uk/id/local-authority/32UF,Planning,Professional & Contractors Fees,24/07/2014,IJ00031198,1110.00,MatchTech Group Plc, 
South Holland District Council,http://statistics.data.gov.uk/id/local-authority/32UF,Planning,Professional & Contractors Fees,24/07/2014,IJ00031330,750.00,MatchTech Group Plc, 
South Holland District Council,http://statistics.data.gov.uk/id/local-authority/32UF,Environmental Services,Legal Fees,24/07/2014,IJ00031210,1250.00,REDACTED PERSONAL INFORMATION,REDACT
South Holland District Council,http://statistics.data.gov.uk/id/local-authority/32UF,Economic Development,Professional & Contractors Fees,24/07/2014,IJ00031304,6447.60,RESOURCE4GROWTH C I C LTD, 
South Holland District Council,http://statistics.data.gov.uk/id/local-authority/32UF,Economic Development,Grants and Contributions to Outside Bodies- No Service Recei,24/07/2014,IJ00031208,1083.00,D AND R ROBINSON TA AS GROOVY FOODS, 
South Holland District Council,http://statistics.data.gov.uk/id/local-authority/32UF,Balance Sheet,Long Term Debtors - Other,24/07/2014,IJ00031341,6000.00,Robins and Day Ltd, 
South Holland District Council,http://statistics.data.gov.uk/id/local-authority/32UF,Environmental Services,Agency Staff,31/07/2014,IJ00031519,265.50,247 Personnel Ltd, 
South Holland District Council,http://statistics.data.gov.uk/id/local-authority/32UF,Environmental Services,Agency Staff,31/07/2014,IJ00031519,67.50,247 Personnel Ltd, 
South Holland District Council,http://statistics.data.gov.uk/id/local-authority/32UF,Environmental Services,Agency Staff,31/07/2014,IJ00031519,400.50,247 Personnel Ltd, 
South Holland District Council,http://statistics.data.gov.uk/id/local-authority/32UF,Community Development,Water and Sewerage Charges,31/07/2014,IJ00031445,1215.10,Anglian Water, 
South Holland District Council,http://statistics.data.gov.uk/id/local-authority/32UF,Housing Landlord Manager,Cesspool Empying,31/07/2014,IJ00031385,1258.00,Bates Environmental Ltd, 
South Holland District Council,http://statistics.data.gov.uk/id/local-authority/32UF,Housing Landlord Manager,Drain Repairs,31/07/2014,IJ00031385,4093.00,Bates Environmental Ltd, 
South Holland District Council,http://statistics.data.gov.uk/id/local-authority/32UF,Housing Landlord Manager,Other Communication Costs,31/07/2014,IJ00031432,7165.69,Boston Mayflower Ltd, 
South Holland District Council,http://statistics.data.gov.uk/id/local-authority/32UF,Housing Landlord Manager,Fuel & Oil,31/07/2014,IJ00031478,592.74,C H Jones Ltd, 
South Holland District Council,http://statistics.data.gov.uk/id/local-authority/32UF,Environmental Services,Fuel & Oil,31/07/2014,IJ00031478,4.89,C H Jones Ltd, 
South Holland District Council,http://statistics.data.gov.uk/id/local-authority/32UF,Environmental Services,Fuel & Oil,31/07/2014,IJ00031478,212.52,C H Jones Ltd, 
South Holland District Council,http://statistics.data.gov.uk/id/local-authority/32UF,Environmental Services,Fuel & Oil,31/07/2014,IJ00031478,1969.02,C H Jones Ltd, 
South Holland District Council,http://statistics.data.gov.uk/id/local-authority/32UF,Environmental Services,Fuel & Oil,31/07/2014,IJ00031478,725.54,C H Jones Ltd, 
South Holland District Council,http://statistics.data.gov.uk/id/local-authority/32UF,Environmental Services,Fuel & Oil,31/07/2014,IJ00031478,2126.16,C H Jones Ltd, 
South Holland District Council,http://statistics.data.gov.uk/id/local-authority/32UF,Housing Landlord Manager,Fuel & Oil,31/07/2014,IJ00031478,394.55,C H Jones Ltd, 
South Holland District Council,http://statistics.data.gov.uk/id/local-authority/32UF,Housing Landlord Manager,Fuel & Oil,31/07/2014,IJ00031478,69.40,C H Jones Ltd, 
South Holland District Council,http://statistics.data.gov.uk/id/local-authority/32UF,Environmental Services,Fuel & Oil,31/07/2014,IJ00031478,21.32,C H Jones Ltd, 
South Holland District Council,http://statistics.data.gov.uk/id/local-authority/32UF,Environmental Services,Fuel & Oil,31/07/2014,IJ00031478,4.89,C H Jones Ltd, 
South Holland District Council,http://statistics.data.gov.uk/id/local-authority/32UF,Environmental Health,Fuel & Oil,31/07/2014,IJ00031478,45.78,C H Jones Ltd, 
South Holland District Council,http://statistics.data.gov.uk/id/local-authority/32UF,Environmental Services,Fuel & Oil,31/07/2014,IJ00031478,56.34,C H Jones Ltd, 
South Holland District Council,http://statistics.data.gov.uk/id/local-authority/32UF,Community Development,Postages,31/07/2014,IJ00031424,1434.60,Classic Printers, 
South Holland District Council,http://statistics.data.gov.uk/id/local-authority/32UF,Democratic Services,Other Miscellaneous Expenses,31/07/2014,IJ00031393,1498.45,Deeping St Nicholas Parochial Church Council, 
South Holland District Council,http://statistics.data.gov.uk/id/local-authority/32UF,Capital,Works to Buildings (main Contractor),31/07/2014,IJ00031434,4055.00,Dolphin Mobility East Mids Ltd, 
South Holland District Council,http://statistics.data.gov.uk/id/local-authority/32UF,Democratic Services,Other Miscellaneous Expenses,31/07/2014,IJ00031481,1000.00,Eastern Inshore Fisheries & Conservation Auth, 
South Holland District Council,http://statistics.data.gov.uk/id/local-authority/32UF,Capital,Works to Buildings (main Contractor),31/07/2014,IJ00031389,137940.00,Foster Property Maintenance Ltd, 
South Holland District Council,http://statistics.data.gov.uk/id/local-authority/32UF,Capital,Works to Buildings (main Contractor),31/07/2014,IJ00031433,1371.37,Foster Property Maintenance Ltd, 
South Holland District Council,http://statistics.data.gov.uk/id/local-authority/32UF,Housing Landlord Manager,Subscriptions to Organisations and Other Bodies,31/07/2014,IJ00031390,3995.00,Frontline Data Ltd, 
South Holland District Council,http://statistics.data.gov.uk/id/local-authority/32UF,Environmental Services,Grounds Maintenance Contract (External),31/07/2014,IJ00031520,1100.00,Greenscape Tree Safe Ltd, 
South Holland District Council,http://statistics.data.gov.uk/id/local-authority/32UF,Environmental Services,Grounds Maintenance Contract (External),31/07/2014,IJ00031521,500.00,Greenscape Tree Safe Ltd, 
South Holland District Council,http://statistics.data.gov.uk/id/local-authority/32UF,Community Development,Performers and Entertainers Fees,31/07/2014,IJ00031427,1500.00,Gwent Ballet Theatre, 
South Holland District Council,http://statistics.data.gov.uk/id/local-authority/32UF,Revs and Bens,Court Costs,31/07/2014,IJ00031394,759.00,H M C S, 
South Holland District Council,http://statistics.data.gov.uk/id/local-authority/32UF,Revs and Bens,Court Costs,31/07/2014,IJ00031394,21.00,H M C S, 
South Holland District Council,http://statistics.data.gov.uk/id/local-authority/32UF,Housing Landlord Manager,Void Decoration,31/07/2014,IJ00031366,641.66,Homebase Limited, 
South Holland District Council,http://statistics.data.gov.uk/id/local-authority/32UF,Housing Landlord Manager,Void Decoration,31/07/2014,IJ00031472,725.00,Homebase Limited, 
South Holland District Council,http://statistics.data.gov.uk/id/local-authority/32UF,Housing Landlord Manager,Materials and Consumables,31/07/2014,IJ00031484,1014.06,Jackson Buildbase, 
South Holland District Council,http://statistics.data.gov.uk/id/local-authority/32UF,Housing Landlord Manager,Materials and Consumables,31/07/2014,IJ00031484,1757.95,Jackson Buildbase, 
South Holland District Council,http://statistics.data.gov.uk/id/local-authority/32UF,Housing Landlord Manager,Materials and Consumables,31/07/2014,IJ00031484,773.09,Jackson Buildbase, 
South Holland District Council,http://statistics.data.gov.uk/id/local-authority/32UF,Housing Landlord Manager,Agency Staff,31/07/2014,IJ00031471,848.78,James Andrews Recruitment Solutions, 
South Holland District Council,http://statistics.data.gov.uk/id/local-authority/32UF,Democratic Services,Stationery,31/07/2014,IJ00031407,949.00,Lexisnexis Uk, 
South Holland District Council,http://statistics.data.gov.uk/id/local-authority/32UF,Building Control,License Fees,31/07/2014,IJ00031373,2457.00,Lexisnexis Uk, 
South Holland District Council,http://statistics.data.gov.uk/id/local-authority/32UF,Capital,Works to Buildings (main Contractor),31/07/2014,IJ00031428,1288.00,M E Goodyear Property Maintenance, 
South Holland District Council,http://statistics.data.gov.uk/id/local-authority/32UF,Asset and Property,Professional & Contractors Fees,31/07/2014,IJ00031523,900.00,Munton & Russell, 
South Holland District Council,http://statistics.data.gov.uk/id/local-authority/32UF,Housing Landlord Manager,Materials and Consumables,31/07/2014,IJ00031452,586.91,Rexel Uk Ltd, 
South Holland District Council,http://statistics.data.gov.uk/id/local-authority/32UF,Democratic Services,Other Miscellaneous Expenses,31/07/2014,IJ00031510,1000.00,Saracens Head Village Hall, 
South Holland District Council,http://statistics.data.gov.uk/id/local-authority/32UF,Housing Landlord Manager,Void Repairs,31/07/2014,IJ00031463,3235.00,South Holland Maintenance Ltd, 
South Holland District Council,http://statistics.data.gov.uk/id/local-authority/32UF,Housing Landlord Manager,Buildings Maintenance - Responsive,31/07/2014,IJ00031454,920.00,South Holland Maintenance Ltd, 
South Holland District Council,http://statistics.data.gov.uk/id/local-authority/32UF,Housing Landlord Manager,Buildings Maintenance - Responsive,31/07/2014,IJ00031455,740.00,South Holland Maintenance Ltd, 
South Holland District Council,http://statistics.data.gov.uk/id/local-authority/32UF,Housing,Grants and Contributions to Outside Bodies- No Service Recei,31/07/2014,IJ00031429,2797.00,Stuart Taplin, 
South Holland District Council,http://statistics.data.gov.uk/id/local-authority/32UF,Environmental Services,Agency Staff,31/07/2014,IJ00031441,185.07,The Best Connection Group Ltd, 
South Holland District Council,http://statistics.data.gov.uk/id/local-authority/32UF,Environmental Services,Agency Staff,31/07/2014,IJ00031441,698.49,The Best Connection Group Ltd, 
South Holland District Council,http://statistics.data.gov.uk/id/local-authority/32UF,Environmental Services,Agency Staff,31/07/2014,IJ00031441,321.16,The Best Connection Group Ltd, 
South Holland District Council,http://statistics.data.gov.uk/id/local-authority/32UF,Environmental Services,Agency Staff,31/07/2014,IJ00031441,76.39,The Best Connection Group Ltd, 
South Holland District Council,http://statistics.data.gov.uk/id/local-authority/32UF,ICT and Customer Services,Computer Hardware Maintenance,31/07/2014,IJ00031426,7689.00,Hewlett Packard Ltd, 
South Holland District Council,http://statistics.data.gov.uk/id/local-authority/32UF,Environmental Health,Professional & Contractors Fees,31/07/2014,IJ00031522,540.00,SAFETY LINK CONSULTANT SERVICES, 
South Holland District Council,http://statistics.data.gov.uk/id/local-authority/32UF,Asset and Property,Furniture and Equipment,31/07/2014,IJ00031438,850.00,E.on Sustainable Energy, 
South Holland District Council,http://statistics.data.gov.uk/id/local-authority/32UF,Democratic Services,Stationery,31/07/2014,IJ00031402,28987.73,ELECTORAL REFORM SERVICES, 
South Holland District Council,http://statistics.data.gov.uk/id/local-authority/32UF,Community Development,Other Miscellaneous Expenses,31/07/2014,IJ00031436,1350.00,Cook Connect Ltd, 
South Holland District Council,http://statistics.data.gov.uk/id/local-authority/32UF,Democratic Services,Other Miscellaneous Expenses,31/07/2014,IJ00031446,600.00,MENCAP (East Region), 
South Holland District Council,http://statistics.data.gov.uk/id/local-authority/32UF,Housing Landlord Manager,Buildings Maintenance - Responsive,31/07/2014,IJ00031464,780.00,Wrights Flooring and Carpets Ltd, 
South Holland District Council,http://statistics.data.gov.uk/id/local-authority/32UF,Capital,Works to Buildings (main Contractor),31/07/2014,IJ00031431,3865.00,M Yould Plumbing and Heating Ltd, 
South Holland District Council,http://statistics.data.gov.uk/id/local-authority/32UF,Housing Landlord Manager,External Painting Repairs,31/07/2014,IJ00031362,18506.00,Novus Property Solutions Ltd, 
South Holland District Council,http://statistics.data.gov.uk/id/local-authority/32UF,Capital,Works to Buildings (main Contractor),31/07/2014,IJ00031374,20080.29,Leisure in the Community, 
South Holland District Council,http://statistics.data.gov.uk/id/local-authority/32UF,Capital,Works to Buildings (main Contractor),31/07/2014,IJ00031375,792.00,Leisure in the Community, 
South Holland District Council,http://statistics.data.gov.uk/id/local-authority/32UF,Capital,Works to Buildings (main Contractor),31/07/2014,IJ00031376,8736.00,Leisure in the Community, 
South Holland District Council,http://statistics.data.gov.uk/id/local-authority/32UF,Housing Landlord Manager,Void Repairs,31/07/2014,IJ00031503,6370.60,Response Construction Maintenance Limited, 
South Holland District Council,http://statistics.data.gov.uk/id/local-authority/32UF,Capital,Works to Buildings (main Contractor),31/07/2014,IJ00031387,141609.00,Willmott Dixon Partnerships Ltd, 
South Holland District Council,http://statistics.data.gov.uk/id/local-authority/32UF,Housing Landlord Manager,Gas Renewals,31/07/2014,IJ00031384,10246.48,Aaron Services Ltd, 
South Holland District Council,http://statistics.data.gov.uk/id/local-authority/32UF,Housing Landlord Manager,Gas Renewals,31/07/2014,IJ00031386,4513.62,Aaron Services Ltd, 
South Holland District Council,http://statistics.data.gov.uk/id/local-authority/32UF,Housing Landlord Manager,Gas Servicing,31/07/2014,IJ00031388,17519.17,Aaron Services Ltd, 
South Holland District Council,http://statistics.data.gov.uk/id/local-authority/32UF,Economic Development,Grants and Contributions to Outside Bodies- No Service Recei,31/07/2014,IJ00031404,13125.00,George Barnsdale and Sons Ltd, 
South Holland District Council,http://statistics.data.gov.uk/id/local-authority/32UF,Capital,Purchase of Land,31/07/2014,IJ00031525,61694.00,MOSSOP AND BOWSER CLIENT AC, 
South Holland District Council,http://statistics.data.gov.uk/id/local-authority/32UF,Community Development,Payments to Bodies in Respect of Income Collected,31/07/2014,IJ00031500,870.00,Art of Circus, 
South Holland District Council,http://statistics.data.gov.uk/id/local-authority/32UF,Community Development,Commission,31/07/2014,IJ00031500,-108.75,Art of Circus, 
South Holland District Council,http://statistics.data.gov.uk/id/local-authority/32UF,Democratic Services,Other Miscellaneous Expenses,31/07/2014,IJ00031443,1000.00,Holbeach Town Scout Group, 
South Holland District Council,http://statistics.data.gov.uk/id/local-authority/32UF,Democratic Services,Other Miscellaneous Expenses,31/07/2014,IJ00031498,600.00,Police and Crime Commissioner for Lincolnshire, 
